Cogmind - Beta 11.2 @@@ ROGUE MODE // 2023.02.23 @ 12:48:36 Player: 3.14 Result: Escaped! Performance ------------- Evolutions (9) 4500 Regions Visited (35) 7000 Robots Destroyed (229) 1145 Value Destroyed (6715) 6715 Prototype IDs (56) 1120 Alien Tech Used (3) 600 Bonus (17331) 17331 TOTAL SCORE: 38411 Bonus ------- High Alert Combat Kills 111 Follower Combat Kills 2044 Network Hubs Disabled 200 Met Imprinter 300 Met Zhirov 300 Met Warlord at Base 500 MAIN.C Attacked Warlord 500 Built Enhanced Grunts 300 A7 Reached Mainframe 300 Met R17 at Cetus 500 Read Decrypted Archives 300 Hacked Protovariant 500 Met Warlord at Research 2000 Met MAIN.C 5000 Hacked MAIN.C 300 Met Warlord at Command 2000 Win 3000 Friendly Fire -824 Cogmind --------- Core Integrity 1280/1600 Matter 300/300 Energy 172/190 System Corruption 20% Temperature Cool (42) Movement Flying (16) Location To Epsilon Eridani Parts ------- > --- POWER (1) -------- Light Quantum Reactor > --- PROPULSION (8) --- Electron Diverter Electron Diverter Cooled Impulse Thruster Impulse Thruster Array Improved Q-thruster Improved Q-thruster Experimental Q-thruster > --- UTILITY (14) ----- Large Storage Unit Advanced Transmission Jammer Centrium Medium Armor Plating Experimental Hacking Suite Experimental Hacking Suite > --- WEAPON (3) ------- Nanosword > --- INVENTORY (15) --- Micro Antimatter Reactor Quantum Reactor Impulse Thruster Array Experimental Cooling System Advanced Energy Well (500) Experimental Sensor Array Peak State ------------ > --- POWER ------------ Quantum Reactor > --- PROPULSION ------- Electron Diverter Electron Diverter Cooled Impulse Thruster Impulse Thruster Array Improved Q-thruster Improved Q-thruster Experimental Q-thruster > --- UTILITY ---------- Advanced Heat Sink Large Storage Unit Advanced Transmission Jammer Centrium Medium Armor Plating Experimental Hacking Suite Experimental Hacking Suite Experimental Hacking Suite Assault Drone Bay Assault Drone Bay Assault Drone Bay > --- WEAPON ----------- Vortex Shotgun Advanced Remote Datajack Nanosword > --- INVENTORY -------- Micro Antimatter Reactor Impulse Thruster Array Experimental Cooling System Advanced Energy Well Experimental Sensor Array Advanced Reaction Control System [Rating: 207] Favorites ----------- Power Light Deuterium Engine Engine Light Deuterium Engine Power Core Micro Fission Core Reactor Light Quantum Reactor Propulsion Improved VTOL Module Treads Light Treads Leg Aluminum Leg Flight Unit Improved VTOL Module Utility Advanced Hacking Suite Device Long-range Sensor Array Storage High-capacity Storage Unit Processor Experimental Signal Interpreter Hackware Advanced Hacking Suite Protection Experimental Utility Shielding Weapon Phasing Sabre Energy Gun Vortex Shotgun Energy Cannon Beam Cannon Ballistic Gun Light Assault Rifle Ballistic Cannon Light Cannon Launcher Mini Smartbomb Launcher Special Weapon Advanced Remote Datajack Slashing Weapon Phasing Sabre Special Melee Weapon Advanced Datajack Build | -11 -10 -9 -9 -8 -7 -7 -7 -7 -7 -7 -6 -6 -6 -6 -6 -6 -6 -6 -5 -5 -5 -5 -4 -4 -4 -4 -4 -3 -3 -3 -3 -2 -2 -1 -1 ------- Run | Scr Mat Mat Min Mat Fac Was Fac Low Low Zio Pro Fac Was Fac Ext Cet Arc Hub Fac Upp Upp Zhi Pro Fac Upp Upp War Pro Res Arm Lab Res Tes Acc Com Slots Evolved 18 | . . 2 . 2 2 . . . . . . 2 . . . . . . 2 . . . . 2 . . . . 2 . . 2 . 2 . Power . | . . . . . . . . . . . . . . . . . . . . . . . . . . . . . . . . . . . . Propulsion 6 | . . 1 . 1 . . . . . . . . . . . . . . 1 . . . . . . . . . 1 . . . . 2 . Utility 12 | . . 1 . 1 2 . . . . . . 2 . . . . . . 1 . . . . 2 . . . . 1 . . 2 . . . Weapon . | . . . . . . . . . . . . . . . . . . . . . . . . . . . . . . . . . . . . Parts Attached 342 | . 21 32 4 41 21 1 11 3 3 7 6 9 3 7 12 4 . 3 24 2 1 8 4 27 2 1 15 4 8 4 . 12 15 6 21 Power 22 | . 1 2 2 2 3 . 1 . . . . . . . 1 . . . 1 . . 2 . 1 . . . . 1 . . 2 1 . 2 Engine 10 | . 1 2 1 2 3 . 1 . . . . . . . . . . . . . . . . . . . . . . . . . . . . Core 5 | . . . 1 . . . . . . . . . . . 1 . . . 1 . . 1 . 1 . . . . . . . . . . . Reactor 7 | . . . . . . . . . . . . . . . . . . . . . . 1 . . . . . . 1 . . 2 1 . 2 Propulsion 83 | . 5 14 . 18 6 1 2 . . . . 1 2 2 2 . . . 5 . . . 1 2 . 1 2 . 3 1 . 5 6 1 3 Treads 19 | . 3 12 . 3 . . . . . . . . . . . . . . . . . . . . . . . . . . . . . . 1 Leg 17 | . 2 . . 15 . . . . . . . . . . . . . . . . . . . . . . . . . . . . . . . Wheel . | . . . . . . . . . . . . . . . . . . . . . . . . . . . . . . . . . . . . Hover . | . . . . . . . . . . . . . . . . . . . . . . . . . . . . . . . . . . . . Flight 47 | . . 2 . . 6 1 2 . . . . 1 2 2 2 . . . 5 . . . 1 2 . 1 2 . 3 1 . 5 6 1 2 Utility 144 | . 5 4 1 6 9 . 5 2 3 1 3 8 . 4 3 2 . 1 16 2 1 4 3 15 1 . 8 2 4 2 . 5 7 4 13 Device 50 | . 1 1 . . 2 . . 1 2 . 2 2 . 1 2 1 . . 3 1 1 2 2 3 1 . 6 2 2 . . 2 . 1 9 Storage 7 | . 2 1 . . . . . . . . . . . . . . . . 1 . . 1 . . . . . . . . . . 2 . . Processor 5 | . . . . 1 . . . . . . . . . . . . . . 1 . . . . . . . 1 . 1 . . 1 . . . Hackware 27 | . . . . . 4 . 4 . . . . 4 . 2 . . . . 5 . . . . 5 . . . . . . . 2 . . 1 Protection 55 | . 2 2 1 5 3 . 1 1 1 1 1 2 . 1 1 1 . 1 6 1 . 1 1 7 . . 1 . 1 2 . . 5 3 3 Artifact . | . . . . . . . . . . . . . . . . . . . . . . . . . . . . . . . . . . . . Weapon 93 | . 10 12 1 15 3 . 3 1 . 6 3 . 1 1 6 2 . 2 2 . . 2 . 9 1 . 5 2 . 1 . . 1 1 3 Energy Gun 6 | . 1 . . 1 . . . . . . . . . . . . . . . . . . . . . . 2 . . . . . 1 . 1 Energy Cannon 1 | . . 1 . . . . . . . . . . . . . . . . . . . . . . . . . . . . . . . . . Ballistic Gun 26 | . 6 9 1 10 . . . . . . . . . . . . . . . . . . . . . . . . . . . . . . . Ballistic Cannon 3 | . 3 . . . . . . . . . . . . . . . . . . . . . . . . . . . . . . . . . . Launcher 17 | . . . . . . . 1 . . 3 1 . . . 2 1 . 1 1 . . 1 . 4 . . 1 1 . . . . . . . Special Weapon 1 | . . . . . . . . . . . . . . . . . . . . . . . . . . . . . . . . . . . 1 Impact Weapon . | . . . . . . . . . . . . . . . . . . . . . . . . . . . . . . . . . . . . Slashing Weapon 26 | . . 2 . 4 1 . 2 1 . . 2 . . 1 3 1 . . 1 . . . . 3 1 . . 1 . 1 . . . 1 1 Piercing Weapon . | . . . . . . . . . . . . . . . . . . . . . . . . . . . . . . . . . . . . Special Melee Weapon 13 | . . . . . 2 . . . . 3 . . 1 . 1 . . 1 . . . 1 . 2 . . 2 . . . . . . . . Unidentified Prototypes 27 | . . 4 . 2 . . 1 . . 1 . 1 . . . 1 . . . . . 3 . . . . 7 1 1 . . . 3 . 2 Corrupted Parts 1 | . 1 . . . . . . . . . . . . . . . . . . . . . . . . . . . . . . . . . . System Corruption 2 | . 2 . . . . . . . . . . . . . . . . . . . . . . . . . . . . . . . . . . Parts Lost 24 | . 2 1 1 4 . . . . . . 1 1 . . 2 . . . 1 . . . 1 . . . . . 1 . . 1 1 . 7 Power 2 | . . 1 . . . . . . . . . . . . 1 . . . . . . . . . . . . . . . . . . . . Propulsion 7 | . 1 . . 3 . . . . . . . 1 . . 1 . . . . . . . 1 . . . . . . . . . . . . Utility 8 | . . . 1 . . . . . . . . . . . . . . . . . . . . . . . . . . . . . 1 . 6 Weapon 7 | . 1 . . 1 . . . . . . 1 . . . . . . . 1 . . . . . . . . . 1 . . 1 . . 1 Highest Loss Streak 4 | . 2 1 1 3 . . . . . . 1 1 . . 1 . . . 1 . . . 1 . . . . . 1 . . 1 1 . 4 To Critical Strikes 2 | . . . . 1 . . . . . . . . . . . . . . . . . . . . . . . . . . . . . . 1 Average Slot Usage (%) 96 | . 99 98 99 98 94 96 99 100 100 100 96 87 97 100 99 100 100 100 98 100 100 97 100 96 100 100 99 100 97 95 . 89 90 86 84 Engine 5 | . 14 11 10 9 7 7 7 7 7 7 7 6 6 6 . . . . . . . . . . . . . . . . . . . . . Core 1 | . . . . . . . . . . . . . . . 5 6 6 6 5 5 5 4 5 4 5 5 5 5 1 . . . . . . Treads 5 | . 9 32 33 8 . . . . . . . . . . . . . . . . . . . . . . . . . . . . . . . Leg 5 | . 18 . . 26 2 . . . . . . . . . . . . . . . . . . . . . . . . . . . . . . Flight 17 | . . . . . 26 27 29 30 30 30 30 26 26 26 26 26 26 26 27 29 29 29 29 25 26 26 26 25 27 27 . 25 24 26 26 Device 6 | . 1 11 11 9 5 7 7 6 7 6 6 6 6 5 6 5 6 5 4 5 5 4 5 4 5 5 4 4 8 9 . 8 8 9 11 Storage 5 | . 14 11 11 9 . . . . . . . . . . . . . . . 5 5 5 5 5 5 5 5 5 4 4 . 4 4 3 3 Processor 3 | . . . . 1 7 7 7 7 7 7 7 6 6 6 6 6 6 6 5 5 5 5 5 5 5 5 5 5 4 4 . 5 8 4 . Hackware 20 | . . . . . 22 30 30 30 30 30 30 27 33 33 33 33 33 33 34 35 35 35 35 31 31 31 31 30 27 27 . 29 26 23 21 Protection 8 | . 12 9 10 16 3 . . . . . . 5 6 6 6 6 6 6 4 . . . . 9 10 10 10 10 9 9 . 8 8 10 9 Ballistic Gun 5 | . 21 14 22 14 . . . . . . . . . . . . . . . . . . . . . . . . . . . . . . . Slashing Weapon 3 | . . . . 3 7 7 6 6 7 6 6 6 6 6 5 5 6 5 5 5 5 5 5 4 5 5 5 4 4 4 . 4 4 2 4 Special Melee Weapon 1 | . . . . . 6 7 7 . . 6 3 . 3 6 5 6 6 6 2 . . 5 . 3 5 5 5 5 1 . . . . . . Naked Turns . | . . . . . . . . . . . . . . . . . . . . . . . . . . . . . . . . . . . . Heaviest Build 85 | 12 50 60 60 85 59 9 19 20 20 20 20 15 10 17 19 14 14 19 30 30 25 30 30 29 23 23 29 29 34 38 38 38 48 49 59 Greatest Support 80 | 20 40 60 60 80 45 20 20 20 20 20 20 20 20 20 21 21 21 21 26 26 26 26 26 31 27 28 34 34 41 41 41 47 47 61 61 Greatest Overweight (x) 6 | . 2 . . 6 1 . . . . . . . . . 1 . . . 1 1 . 1 1 1 . . . . . . . . 1 . 1 Average Overweight (x) . | . 1 . . 1 . . . . . . . . . . . . . . . . . . . . . . . . . . . . . . . Largest Inventory Capacity 20 | . 20 20 20 20 20 5 5 5 5 5 5 5 5 5 5 5 5 5 10 10 10 10 10 10 10 10 10 10 10 10 10 10 15 15 15 Average Capacity 11 | . 17 20 20 20 6 5 5 5 5 5 5 5 5 5 5 5 5 5 5 10 10 10 10 10 10 10 10 10 10 10 10 10 11 15 15 Most Carried 20 | . 16 20 20 20 20 5 5 5 5 5 5 5 5 5 5 5 4 4 6 6 6 7 7 10 8 8 10 10 10 10 10 10 11 14 15 Average Carried 10 | . 13 19 19 19 5 4 4 5 5 4 5 4 5 4 4 4 4 4 4 6 6 6 6 7 8 8 9 9 9 9 10 9 9 10 13 Final Capacity 20 | 8 20 20 20 20 5 5 5 5 5 5 5 5 5 5 5 5 5 5 10 10 10 10 10 10 10 10 10 10 10 10 10 10 15 15 15 Final Carried 20 | 6 16 20 19 20 4 5 5 5 5 5 5 5 5 5 4 4 4 4 6 6 6 7 6 8 8 8 10 9 10 10 10 10 11 14 7 Class Distribution -------------------- 43% | Wizard-Sprinter 17% | Mutant 16% | Scavenger-Mutant 15% | Hacker-Sprinter 5% | Wizard-Ninja Dominant Class ---------------- Mutant | -10/Materials Mutant | -9/Materials Scavenger-Mutant | -9/Mines Scavenger-Mutant | -8/Materials Hacker-Sprinter | -7/Factory Hacker-Sprinter | -7/Waste Hacker-Sprinter | -7/Factory Hacker-Sprinter | -7/Lower Caves Hacker-Sprinter | -7/Lower Caves Hacker-Sprinter | -7/Zion Hacker-Sprinter | -6/Proximity Caves Hacker-Sprinter | -6/Factory Wizard-Sprinter | -6/Waste Wizard-Sprinter | -6/Factory Wizard-Sprinter | -6/Extension Wizard-Sprinter | -6/Cetus Wizard-Sprinter | -6/Archives Wizard-Sprinter | -6/Hub_04(d) Wizard-Sprinter | -5/Factory Wizard-Sprinter | -5/Upper Caves Wizard-Sprinter | -5/Upper Caves Wizard-Sprinter | -5/Zhirov Wizard-Sprinter | -4/Proximity Caves Wizard-Sprinter | -4/Factory Wizard-Sprinter | -4/Upper Caves Wizard-Sprinter | -4/Upper Caves Wizard-Sprinter | -4/Warlord Wizard-Sprinter | -3/Proximity Caves Wizard-Sprinter | -3/Research Wizard-Sprinter | -3/Armory Wizard-Sprinter | -3/Lab Wizard-Sprinter | -2/Research Wizard-Ninja | -2/Testing Wizard-Sprinter | -1/Access Wizard-Sprinter | -1/Command Resources | -11 -10 -9 -9 -8 -7 -7 -7 -7 -7 -7 -6 -6 -6 -6 -6 -6 -6 -6 -5 -5 -5 -5 -4 -4 -4 -4 -4 -3 -3 -3 -3 -2 -2 -1 -1 ----------- Run | Scr Mat Mat Min Mat Fac Was Fac Low Low Zio Pro Fac Was Fac Ext Cet Arc Hub Fac Upp Upp Zhi Pro Fac Upp Upp War Pro Res Arm Lab Res Tes Acc Com Matter Collected 6298 | 200 493 688 119 1187 210 10 87 30 109 41 137 45 . 108 410 65 . 10 286 234 63 . 361 425 40 . 140 70 75 50 . 120 166 69 250 Remotely . | . . . . . . . . . . . . . . . . . . . . . . . . . . . . . . . . . . . . Salvage Created 9406 | . 504 1293 195 2181 216 . 215 . 44 . 167 114 . 237 121 24 . 586 350 74 181 . 505 799 31 . . 35 101 60 . 294 452 285 342 Parts 524 | . 35 100 20 110 12 . 14 . 7 . 9 11 . 11 10 4 . 22 27 5 8 . 12 29 3 . . . 5 5 . 11 19 17 18 Haulers Intercepted 14 | . 1 4 . 4 . . . . . . . . . . . . . 1 . . . . . . . . . . . . . 2 2 . . Recyclers Shooed 10 | . 5 . . 3 . . . . . . . . . . . . . 1 1 . . . . . . . . . . . . . . . . Parts Field Recycled . | . . . . . . . . . . . . . . . . . . . . . . . . . . . . . . . . . . . . Retrieved Matter . | . . . . . . . . . . . . . . . . . . . . . . . . . . . . . . . . . . . . Parts Self-Destructed 21 | . . . . . . . . . 3 . 1 . . . . . . . . 3 7 . 7 . . . . . . . . . . . . Prevented . | . . . . . . . . . . . . . . . . . . . . . . . . . . . . . . . . . . . . Kills | -11 -10 -9 -9 -8 -7 -7 -7 -7 -7 -7 -6 -6 -6 -6 -6 -6 -6 -6 -5 -5 -5 -5 -4 -4 -4 -4 -4 -3 -3 -3 -3 -2 -2 -1 -1 ------- Run | Scr Mat Mat Min Mat Fac Was Fac Low Low Zio Pro Fac Was Fac Ext Cet Arc Hub Fac Upp Upp Zhi Pro Fac Upp Upp War Pro Res Arm Lab Res Tes Acc Com Combat Hostiles Destroyed 142 | . 13 29 9 31 1 . . . 3 . 4 . . . 5 2 . 1 5 6 8 . 9 6 . . . . 1 1 . . 3 2 3 Melee 32 | . . 4 . 11 1 . . . . . . . . . . . . . 5 . . . 1 . . . . . 1 1 . . 3 2 3 Guns 55 | . 4 22 9 20 . . . . . . . . . . . . . . . . . . . . . . . . . . . . . . . Cannons 12 | . 9 3 . . . . . . . . . . . . . . . . . . . . . . . . . . . . . . . . . AOE 43 | . . . . . . . . . 3 . 4 . . . 5 2 . 1 . 6 8 . 8 6 . . . . . . . . . . . Classes Destroyed 15 | . 6 2 . 3 1 . . . . . 1 . . . . . . . . . . . . 2 . . . . . . . . . . . Worker 12 | . 1 1 . 2 1 . 1 . . . . . . . . . . 1 1 . . . . 2 . . . . . . . . 1 1 . Builder 7 | . . 1 . . . . . . . . . 1 . 1 2 . . 1 1 . . . . . . . . . . . . . . . . Hauler 14 | . 1 4 . 4 . . . . . . . . . . . . . 1 . . . . . . . . . . . . . 2 2 . . Recycler 15 | . 2 . . 3 1 . 1 . . . . . . 1 . . . 2 . . . . . 4 . . . . . . . . . . 1 Mechanic 1 | . . . . . . . . . . . . . . . . . . . . . . . . 1 . . . . . . . . . . . Operator 11 | . 2 3 . 2 1 . . . . . . 1 . . 1 . . 1 . . . . . . . . . . . . . . . . . Watcher 24 | . . . . 3 1 . 2 . . . . 2 . 2 . . . . 6 . . . . 2 . . . . 1 . . 2 . 3 . Swarmer 63 | . 6 11 7 . . . . . 3 . 4 . . . 4 2 . . 5 5 6 . 5 5 . . . . . . . . . . . Cutter 1 | . . . . . . . . . . . . . . . . . . . . . . . . 1 . . . . . . . . . . . Grunt 45 | . 7 9 2 16 . . . . . . . . . . 1 . . 1 . 1 2 . 3 . . . . . . 1 . . 1 1 . Brawler 2 | . . . . 1 . . . . . . . . . . . . . . . . . . 1 . . . . . . . . . . . . Sentry 19 | . . 9 . 10 . . . . . . . . . . . . . . . . . . . . . . . . . . . . . . . Hunter 5 | . . . . 4 . . . . . . . . . . . . . . . . . . . . . . . . 1 . . . . . . Programmer 6 | . . . . . 1 . . . . . . . . . . . . . . . . . . . . . . . . . . . 2 1 2 Combat Programmer 1 | . . . . . . . . . . . . . . . . . . . . . . . . . . . . . . . . . . . 1 Decomposer 2 | . . . . . . . . . . . . . . . . . . . . . . . 2 . . . . . . . . . . . . Samaritan 5 | . . . . . . . . . . . 3 . . . . . . . . . . . . . 1 . . 1 . . . . . . . Wasp 2 | . . . . . . . 2 . . . . . . . . . . . . . . . . . . . . . . . . . . . . Guerrilla 1 | . . . . . . . . . . . . . . . . . . 1 . . . . . . . . . . . . . . . . . Best Kill Streak 8 | . 4 8 5 5 2 . 2 . 3 . 4 1 . 1 5 2 . 6 5 4 4 . 5 4 . . . . 1 1 . 1 2 3 2 Combat Bots Only 8 | . 3 8 5 4 1 . . . 3 . 4 . . . 4 2 . 1 5 4 4 . 5 4 . . . . 1 1 . . 2 1 1 Max Kills in Single Turn 4 | . 1 2 1 1 1 . 1 . 2 . 3 1 . 1 2 2 . 4 1 2 4 . 2 2 1 . . 1 1 1 . 1 1 1 1 Gunslinging 1 | . . 1 . . . . . . . . . . . . . . . . . . . . . . . . . . . . . . . . . Exploded 4 | . . . . . . . . . 2 . 3 . . . 2 2 . 1 . 2 4 . 2 2 . . . . . . . . . . . Melee 1 | . . 1 . 1 1 . . . . . . . . . . . . . 1 . . . 1 . . . . . 1 1 . . 1 1 1 Uniques/NPCs Destroyed . | . . . . . . . . . . . . . . . . . . . . . . . . . . . . . . . . . . . . Combat | -11 -10 -9 -9 -8 -7 -7 -7 -7 -7 -7 -6 -6 -6 -6 -6 -6 -6 -6 -5 -5 -5 -5 -4 -4 -4 -4 -4 -3 -3 -3 -3 -2 -2 -1 -1 -------- Run | Scr Mat Mat Min Mat Fac Was Fac Low Low Zio Pro Fac Was Fac Ext Cet Arc Hub Fac Upp Upp Zhi Pro Fac Upp Upp War Pro Res Arm Lab Res Tes Acc Com Damage Taken 9982 | . 704 1248 196 2008 75 . 114 . 32 . 89 . 21 149 332 . . 78 296 36 36 . 99 228 . . . . 247 322 . 184 569 291 2628 Core 1487 | . 142 220 25 166 14 . 29 . 15 . 6 . 7 59 128 . . 26 43 14 . . 18 23 . . . . 40 51 . . 141 47 273 Absorbed by Shields 259 | . . . . . . . . . . . . . . . 40 . . . . . . . . . . . . . . . . . . . 219 Redirected to Shielding 996 | . 29 . . . . . . . . . . . . . 22 . . . 15 . . . . 140 . . . . 45 96 . 59 138 143 309 Regen/Repaired (Parts) 2101 | . 94 108 . . . . 135 . . . . 60 . 24 . . . . 486 . . . . 309 . . . . . . . . 638 122 125 Core Remaining (%) 78 | 100 43 . 38 69 . . . . . . 90 . . . . . . 74 . . . . 92 . . . . 98 . . 86 . 90 . 80 Volleys Fired 327 | . 85 77 12 103 . . . . 2 . 4 . . . 10 1 . 1 . 9 2 . 8 7 . . . . . . . . . . 6 Largest 2 | . 2 2 2 2 . . . . 1 . 1 . . . 1 1 . 1 . 1 1 . 1 1 . . . . . . . . . . 1 Hottest 89 | . 55 83 46 89 . . . . 36 . 39 . . . 80 80 . 80 . 80 80 . 80 80 . . . . . . . . . . 60 Shots Fired 595 | . 161 154 24 206 . . . . 2 . 4 . . . 10 1 . 1 . 9 2 . 8 7 . . . . . . . . . . 6 Gun 468 | . 108 125 24 206 . . . . . . . . . . . . . . . . . . . . . . . . . . . . . . 5 Cannon 82 | . 53 29 . . . . . . . . . . . . . . . . . . . . . . . . . . . . . . . . . Launcher 44 | . . . . . . . . . 2 . 4 . . . 10 1 . 1 . 9 2 . 8 7 . . . . . . . . . . . Special 1 | . . . . . . . . . . . . . . . . . . . . . . . . . . . . . . . . . . . 1 Kinetic 508 | . 154 125 24 205 . . . . . . . . . . . . . . . . . . . . . . . . . . . . . . . Thermal 30 | . . 29 . 1 . . . . . . . . . . . . . . . . . . . . . . . . . . . . . . . Explosive 44 | . . . . . . . . . 2 . 4 . . . 10 1 . 1 . 9 2 . 8 7 . . . . . . . . . . . Electromagnetic 7 | . 7 . . . . . . . . . . . . . . . . . . . . . . . . . . . . . . . . . . Entropic 5 | . . . . . . . . . . . . . . . . . . . . . . . . . . . . . . . . . . . 5 Robot Hit Streak 19 | . 12 19 6 10 . . . . . . 1 . . . 2 . . . . . . . 3 6 . . . . . . . . . . 13 Robot Miss Streak 4 | . 3 4 2 4 . . . . . . 1 . . . . . . . . . . . . . . . . . . . . . . . 1 Penetration Max 1 | . . . . 1 . . . . . . . . . . . . . . . . . . . . . . . . . . . . . . . Secondary Targets 4 | . . 3 . 1 . . . . . . . . . . . . . . . . . . . . . . . . . . . . . . . Max Gunslinging Chain 1 | . . 1 . 1 . . . . . . . . . . . . . . . . . . . . . . . . . . . . . . . Shots Hit Robots 602 | . 108 116 14 178 13 . 8 . . . 6 12 . 9 4 . . 6 29 . . . 10 19 1 . . 1 11 3 . 5 13 15 21 Core Hits 312 | . 36 52 9 68 3 . 5 . 5 . 6 3 . 2 15 5 . 14 11 9 8 . 18 14 . . . . 4 1 . 4 7 6 7 Critical Kills 3 | . . 1 1 1 . . . . . . . . . . . . . . . . . . . . . . . . . . . . . . . Critical Parts Destroyed 3 | . . . . 2 . . . . . . . . . . . . . . . . . . . . . . . . . . . . . . 1 Critical Strikes 23 | . 2 1 1 6 1 . . . . . . 1 . 1 . . . . 1 . . . . . . . . . 1 1 . . 2 2 3 Destroy 5 | . . 1 1 3 . . . . . . . . . . . . . . . . . . . . . . . . . . . . . . . Blast 1 | . 1 . . . . . . . . . . . . . . . . . . . . . . . . . . . . . . . . . . Corrupt 1 | . 1 . . . . . . . . . . . . . . . . . . . . . . . . . . . . . . . . . . Sever 15 | . . . . 3 1 . . . . . . 1 . 1 . . . . 1 . . . . . . . . . 1 1 . . 2 2 2 Detonate 1 | . . . . . . . . . . . . . . . . . . . . . . . . . . . . . . . . . . . 1 Melee Attacks 580 | . . 19 . 47 22 . 48 . . . 9 48 . 42 8 . . 11 87 3 1 . 11 49 2 . 2 3 17 13 . 26 29 31 52 Impact . | . . . . . . . . . . . . . . . . . . . . . . . . . . . . . . . . . . . . Slashing 578 | . . 19 . 47 22 . 48 . . . 9 48 . 42 8 . . 11 86 3 1 . 11 48 2 . 2 3 17 13 . 26 29 31 52 Piercing . | . . . . . . . . . . . . . . . . . . . . . . . . . . . . . . . . . . . . Sneak Attacks 50 | . . 1 . 3 2 . 6 . . . 5 1 . 3 2 . . 4 4 . . . 2 9 1 . . 1 . . . 2 3 1 . Combat Hostiles . | . . . . . . . . . . . . . . . . . . . . . . . . . . . . . . . . . . . . Follow-up Attacks . | . . . . . . . . . . . . . . . . . . . . . . . . . . . . . . . . . . . . Damage Inflicted 24667 | . 1458 2172 220 4013 530 . 473 . 172 . 744 506 . 532 1111 233 . 1178 1525 643 637 . 1743 1937 81 . . 73 471 166 . 468 1055 1021 1505 Guns 5202 | . 709 1211 220 2683 . . . . . . . . . . . . . . . . . . . . . . . . . . . . . . 379 Cannons 1122 | . 650 472 . . . . . . . . . . . . . . . . . . . . . . . . . . . . . . . . . Explosions 5685 | . 23 . . . . . . . 172 . 391 . . . 886 233 . 650 . 643 637 . 1039 885 . . . . . . . . 64 . 62 Melee 12506 | . . 428 . 1315 530 . 473 . . . 353 506 . 532 225 . . 528 1525 . . . 704 1052 81 . . 73 471 166 . 468 991 1021 1064 Ramming 152 | . 76 61 . 15 . . . . . . . . . . . . . . . . . . . . . . . . . . . . . . . Kinetic 5406 | . 1292 1211 220 2683 . . . . . . . . . . . . . . . . . . . . . . . . . . . . . . . Thermal 723 | . 23 472 . . . . . . . . . . . . 166 . . . . . . . . . . . . . . . . . . . 62 Explosive 4767 | . . . . . . . . . 172 . 391 . . . 720 233 . 47 . 643 637 . 1039 885 . . . . . . . . . . . Electromagnetic 734 | . 67 . . . . . . . . . . . . . . . . 603 . . . . . . . . . . . . . . 64 . . Impact . | . . . . . . . . . . . . . . . . . . . . . . . . . . . . . . . . . . . . Slashing 12506 | . . 428 . 1315 530 . 473 . . . 353 506 . 532 225 . . 528 1525 . . . 704 1052 81 . . 73 471 166 . 468 991 1021 1064 Piercing . | . . . . . . . . . . . . . . . . . . . . . . . . . . . . . . . . . . . . Entropic 379 | . . . . . . . . . . . . . . . . . . . . . . . . . . . . . . . . . . . 379 Highest Corruption 20 | . 2 . . 1 2 2 2 2 2 2 . . . . . . . 1 2 2 2 2 2 . . . . . . . . . 4 2 20 Average Corruption 2 | . 2 . . 1 1 2 2 2 2 2 . . . . . . . 1 2 2 2 2 2 . . . . . . . . . 2 1 4 Corruption Purged . | . . . . . . . . . . . . . . . . . . . . . . . . . . . . . . . . . . . . Corruption Blocked 20 | . . . . . . . . . . . . . . . . . . . . . . . . . . . . . . . . . 20 . . Effects 68 | . . . . 7 2 1 11 4 . . . . . . . . . . 11 3 1 . 7 . . . . . . . . . 9 1 11 Message Errors 12 | . . . . 1 . . 3 . . . . . . . . . . . 4 1 . . 1 . . . . . . . . . 1 . 1 Matter Fused 21 | . . . . 3 . . 2 2 . . . . . . . . . . 2 1 1 . 1 . . . . . . . . . 3 1 5 Heat Flow Errors 11 | . . . . . . . 3 2 . . . . . . . . . . 1 . . . 2 . . . . . . . . . 1 . 2 Energy Discharges 10 | . . . . 1 . . 2 . . . . . . . . . . . 2 1 . . 2 . . . . . . . . . 2 . . Parts Rejected 2 | . . . . 1 . 1 . . . . . . . . . . . . . . . . . . . . . . . . . . . . . Data Loss (minor) 8 | . . . . 1 2 . . . . . . . . . . . . . 2 . . . 1 . . . . . . . . . . . 2 Data Loss (major) 2 | . . . . . . . . . . . . . . . . . . . . . . . . . . . . . . . . . 2 . . Alerts 1 | . . . . . . . 1 . . . . . . . . . . . . . . . . . . . . . . . . . . . . Misdirections 1 | . . . . . . . . . . . . . . . . . . . . . . . . . . . . . . . . . . . 1 Overload Shots . | . . . . . . . . . . . . . . . . . . . . . . . . . . . . . . . . . . . . Overflow Damage 2695 | . 14 17 . . 98 . 33 . . . 238 118 . 211 142 . . 264 323 16 23 . 343 331 80 . . 68 36 2 . . 61 128 149 Projectiles 14 | . 14 . . . . . . . . . . . . . . . . . . . . . . . . . . . . . . . . . . Explosions 322 | . . . . . . . . . . . 30 . . . 37 . . 16 . 16 23 . 23 177 . . . . . . . . . . . Melee 2359 | . . 17 . . 98 . 33 . . . 208 118 . 211 105 . . 248 323 . . . 320 154 80 . . 68 36 2 . . 61 128 149 Knockbacks 16 | . 15 1 . . . . . . . . . . . . . . . . . . . . . . . . . . . . . . . . . Impact 3 | . 2 1 . . . . . . . . . . . . . . . . . . . . . . . . . . . . . . . . . Kinetic 12 | . 12 . . . . . . . . . . . . . . . . . . . . . . . . . . . . . . . . . . Secondary 1 | . 1 . . . . . . . . . . . . . . . . . . . . . . . . . . . . . . . . . . Self-Inflicted Damage 458 | . 29 . . . . . . . . . 47 . . . 192 . . 79 . 23 37 . . . . . . . . . . . 51 . . Shots 9 | . 1 . . . . . . . . . 1 . . . 3 . . 1 . 1 1 . . . . . . . . . . . 1 . . Rammed 11 | . 6 5 . . . . . . . . . . . . . . . . . . . . . . . . . . . . . . . . . Targets Rammed 24 | . 18 5 . 1 . . . . . . . . . . . . . . . . . . . . . . . . . . . . . . . Kicked 13 | . 12 . . 1 . . . . . . . . . . . . . . . . . . . . . . . . . . . . . . . Crushed . | . . . . . . . . . . . . . . . . . . . . . . . . . . . . . . . . . . . . Highest Temperature 299 | . 64 261 . 18 . . 183 204 3 . 4 . . 2 93 26 . 30 202 96 29 . 220 68 . . . 2 57 45 10 123 240 83 299 Average Temperature 35 | . 19 41 . 5 . . 86 100 3 . 4 . . 2 45 19 . 22 54 35 16 . 57 23 . . . 2 16 13 7 36 51 24 25 Received Heat Transfer 1881 | . 339 330 27 720 . . . . . . 12 . . 48 72 . . . 27 . . . . 21 . . . . . 78 . 36 27 18 126 Siege Activations . | . . . . . . . . . . . . . . . . . . . . . . . . . . . . . . . . . . . . Robots Corrupted . | . . . . . . . . . . . . . . . . . . . . . . . . . . . . . . . . . . . . Combat Hostiles . | . . . . . . . . . . . . . . . . . . . . . . . . . . . . . . . . . . . . Parts Fried 3 | . . . . . . . . . . . . . . . . . . 3 . . . . . . . . . . . . . . . . . Impact Corruptions . | . . . . . . . . . . . . . . . . . . . . . . . . . . . . . . . . . . . . Robots Melted . | . . . . . . . . . . . . . . . . . . . . . . . . . . . . . . . . . . . . Combat Hostiles . | . . . . . . . . . . . . . . . . . . . . . . . . . . . . . . . . . . . . Parts Melted . | . . . . . . . . . . . . . . . . . . . . . . . . . . . . . . . . . . . . Heat Transferred 1124 | . 50 962 . . . . . . . . . . . . 100 . . . . . . . . . . . . . . . . . . . 12 Parts Sabotaged . | . . . . . . . . . . . . . . . . . . . . . . . . . . . . . . . . . . . . Parts Stolen . | . . . . . . . . . . . . . . . . . . . . . . . . . . . . . . . . . . . . Parts Stripped . | . . . . . . . . . . . . . . . . . . . . . . . . . . . . . . . . . . . . Power Chain Reactions 1 | . 1 . . . . . . . . . . . . . . . . . . . . . . . . . . . . . . . . . . Missiles Intercepted . | . . . . . . . . . . . . . . . . . . . . . . . . . . . . . . . . . . . . Alert | -11 -10 -9 -9 -8 -7 -7 -7 -7 -7 -7 -6 -6 -6 -6 -6 -6 -6 -6 -5 -5 -5 -5 -4 -4 -4 -4 -4 -3 -3 -3 -3 -2 -2 -1 -1 ------- Run | Scr Mat Mat Min Mat Fac Was Fac Low Low Zio Pro Fac Was Fac Ext Cet Arc Hub Fac Upp Upp Zhi Pro Fac Upp Upp War Pro Res Arm Lab Res Tes Acc Com Peak Influence 700 | . 199 700 437 454 427 171 218 . . . . 221 81 168 665 506 202 675 470 . . . . 525 . . . . 269 303 . 304 258 190 371 Initial 330 | . . . 222 170 206 149 87 . . . . 59 58 30 7 44 202 70 330 . . . . 154 . . . . . 140 . . 171 21 44 Average 167 | . 45 188 370 238 271 140 83 . . . . 105 61 67 297 205 202 270 165 . . . . 284 . . . . 61 218 . 209 129 108 202 Maximum Alert Level 3 | . . 3 2 2 2 . 1 . . . . 1 . . 2 2 1 2 2 . . . . 2 . . . . 1 1 . 1 1 . 1 Low Security (%) 67 | . 100 62 . 50 . 100 99 . . . . 95 100 100 50 71 . 42 74 . . . . 21 . . . . 84 38 . 21 84 100 43 Level 1 23 | . . 22 76 30 91 . . . . . . 4 . . 8 6 100 25 12 . . . . 57 . . . . 15 61 . 78 15 . 56 Level 2 9 | . . 14 23 19 8 . . . . . . . . . 40 21 . 32 13 . . . . 20 . . . . . . . . . . . Level 3 . | . . . . . . . . . . . . . . . . . . . . . . . . . . . . . . . . . . . . Level 4 . | . . . . . . . . . . . . . . . . . . . . . . . . . . . . . . . . . . . . Level 5 . | . . . . . . . . . . . . . . . . . . . . . . . . . . . . . . . . . . . . High Security . | . . . . . . . . . . . . . . . . . . . . . . . . . . . . . . . . . . . . Max Security . | . . . . . . . . . . . . . . . . . . . . . . . . . . . . . . . . . . . . Squads Dispatched 72 | . 3 4 . 7 2 . 6 . . . . 5 . 6 2 . . 1 12 . . . . 12 . . . . 1 2 . 1 4 2 2 Investigation 38 | . 2 1 . 2 1 . 5 . . . . 3 . 5 . . . . 7 . . . . 5 . . . . 1 2 . 1 1 1 1 Extermination 14 | . . . . . 1 . 1 . . . . 2 . 1 . . . . 3 . . . . 2 . . . . . . . . 2 1 1 Reinforcement 12 | . 1 3 . 2 . . . . . . . . . . 2 . . 1 1 . . . . 2 . . . . . . . . . . . Assault 2 | . . . . . . . . . . . . . . . . . . . 1 . . . . . . . . . . . . . 1 . . Garrison 6 | . . . . 3 . . . . . . . . . . . . . . . . . . . 3 . . . . . . . . . . . Intercept . | . . . . . . . . . . . . . . . . . . . . . . . . . . . . . . . . . . . . Searches Triggered 1 | . . . . . . . . . . . . . . . . . . . . . . . . 1 . . . . . . . . . . . Construction Impeded 2 | . . . . . . . . . . . . . . . 2 . . . . . . . . . . . . . . . . . . . . Haulers Reinforced . | . . . . . . . . . . . . . . . . . . . . . . . . . . . . . . . . . . . . Active Scanning Responses . | . . . . . . . . . . . . . . . . . . . . . . . . . . . . . . . . . . . . Cargo Convoy Interrupts . | . . . . . . . . . . . . . . . . . . . . . . . . . . . . . . . . . . . . Stealth | -11 -10 -9 -9 -8 -7 -7 -7 -7 -7 -7 -6 -6 -6 -6 -6 -6 -6 -6 -5 -5 -5 -5 -4 -4 -4 -4 -4 -3 -3 -3 -3 -2 -2 -1 -1 --------- Run | Scr Mat Mat Min Mat Fac Was Fac Low Low Zio Pro Fac Was Fac Ext Cet Arc Hub Fac Upp Upp Zhi Pro Fac Upp Upp War Pro Res Arm Lab Res Tes Acc Com Distress Signals 30 | . . 6 . 6 3 . 1 . . . . . . . 3 2 . . 1 . . . . . . . 1 . 1 . . 1 1 2 2 Communications Jammed 30 | . . . . . . . . . . . . . . . . . . . . . . . . . . . . . 8 3 . 1 8 9 1 Distress Signals 29 | . . . . . . . . . . . . . . . . . . . . . . . . . . . . . 8 3 . 1 7 9 1 Times Spotted 389 | . 33 45 10 46 10 6 16 . 3 . 2 10 4 12 15 9 . 5 26 4 1 . 5 19 4 . . . 9 15 . 9 15 13 43 Peak Tracking Total 13 | . 3 10 3 6 4 6 3 . 3 . 1 3 3 4 4 5 . 3 6 2 1 . 6 4 5 . . . 9 7 . 2 4 5 13 Tactical Retreats 42 | . . 2 1 . 3 . 5 . . . 1 2 . 3 . . . . 5 1 . . 2 5 . . . . . 1 . 3 . 1 7 Traps | -11 -10 -9 -9 -8 -7 -7 -7 -7 -7 -7 -6 -6 -6 -6 -6 -6 -6 -6 -5 -5 -5 -5 -4 -4 -4 -4 -4 -3 -3 -3 -3 -2 -2 -1 -1 ------- Run | Scr Mat Mat Min Mat Fac Was Fac Low Low Zio Pro Fac Was Fac Ext Cet Arc Hub Fac Upp Upp Zhi Pro Fac Upp Upp War Pro Res Arm Lab Res Tes Acc Com Traps Triggered 21 | . 1 1 . 3 3 . 1 . . . . 1 . . 3 . . 2 1 . . . . . . . . . . . . . 1 . 4 Indirectly 2 | . . . . . . . . . . . . . . . . . . 2 . . . . . . . . . . . . . . . . . Trap Hack Attempts . | . . . . . . . . . . . . . . . . . . . . . . . . . . . . . . . . . . . . Triggered . | . . . . . . . . . . . . . . . . . . . . . . . . . . . . . . . . . . . . Disarmed 3 | . . . . . . . . . . . . . . . . . . . . . . . . . . . . . . . . . 3 . . Reprogrammed . | . . . . . . . . . . . . . . . . . . . . . . . . . . . . . . . . . . . . Reused . | . . . . . . . . . . . . . . . . . . . . . . . . . . . . . . . . . . . . Traps Extracted . | . . . . . . . . . . . . . . . . . . . . . . . . . . . . . . . . . . . . Installed . | . . . . . . . . . . . . . . . . . . . . . . . . . . . . . . . . . . . . Triggered 8 | . . . . . . . . . . . 1 . . . . . . . . . . . . . . . 7 . . . . . . . . Machines | -11 -10 -9 -9 -8 -7 -7 -7 -7 -7 -7 -6 -6 -6 -6 -6 -6 -6 -6 -5 -5 -5 -5 -4 -4 -4 -4 -4 -3 -3 -3 -3 -2 -2 -1 -1 ---------- Run | Scr Mat Mat Min Mat Fac Was Fac Low Low Zio Pro Fac Was Fac Ext Cet Arc Hub Fac Upp Upp Zhi Pro Fac Upp Upp War Pro Res Arm Lab Res Tes Acc Com Machines Disabled 18 | . 3 . . 3 . . . . . . . 1 . . 3 . . 6 . . . . . . . . . . . . . . 1 . 1 Max in Single Turn 4 | . 1 . . 1 . . . . . . . 1 . . 3 . . 4 . . . . . . . . . . . . . . 1 . 1 Garrison Access 11 | . . . . . . . 1 . . . . 2 . . . . . 1 1 . . . . . . . . . 1 . . 2 1 2 . Network Hub 1 | . . . . . . . . . . . . . . . . . . 1 . . . . . . . . . . . . . . . . . Energy Cycler 2 | . . . . . . . . . . . . . . . 2 . . . . . . . . . . . . . . . . . . . . Machines Sabotaged . | . . . . . . . . . . . . . . . . . . . . . . . . . . . . . . . . . . . . Garrisons Compromised . | . . . . . . . . . . . . . . . . . . . . . . . . . . . . . . . . . . . . Overloaded Fab Kills . | . . . . . . . . . . . . . . . . . . . . . . . . . . . . . . . . . . . . Hacking | -11 -10 -9 -9 -8 -7 -7 -7 -7 -7 -7 -6 -6 -6 -6 -6 -6 -6 -6 -5 -5 -5 -5 -4 -4 -4 -4 -4 -3 -3 -3 -3 -2 -2 -1 -1 --------- Run | Scr Mat Mat Min Mat Fac Was Fac Low Low Zio Pro Fac Was Fac Ext Cet Arc Hub Fac Upp Upp Zhi Pro Fac Upp Upp War Pro Res Arm Lab Res Tes Acc Com Machines Accessed 165 | . 4 5 . 2 3 . 15 1 . 1 . 18 . 13 5 1 1 3 24 1 . 4 . 15 . . 2 . 5 6 . 4 11 10 11 Terminals 92 | . 3 4 . 2 3 . 8 . . . . 10 . 5 5 1 . 2 14 . . . . 8 . . . . 2 3 . 1 6 5 10 Fabricators 27 | . . . . . . . 4 . . . . 3 . 4 . . . . 6 . . . . 4 . . . . 1 2 . 1 1 1 . Repair Stations 15 | . 1 1 . . . . 1 . . . . 1 . 1 . . . . 3 . . . . 2 . . . . . . . . 2 2 1 Recycling Units 2 | . . . . . . . . . . . . 1 . . . . . . . . . . . . . . . . . 1 . . . . . Scanalyzers 4 | . . . . . . . 1 . . . . . . 1 . . . . . . . . . . . . . . 1 . . . 1 . . Garrison Access 15 | . . . . . . . 1 . . . . 3 . 2 . . . 1 1 . . . . 1 . . . . 1 . . 2 1 2 . Total Hacks 511 | . 12 21 . 5 8 . 59 1 . 2 . 52 . 35 19 2 4 5 88 1 . 17 . 59 . . 2 . 14 15 . 11 32 20 27 Successful 434 | . 7 13 . 2 3 . 46 1 . 2 . 37 . 32 15 1 4 4 80 1 . 17 . 57 . . 2 . 12 14 . 10 31 20 23 Failed 76 | . 5 8 . 3 5 . 13 . . . . 15 . 3 3 1 . 1 8 . . . . 2 . . . . 2 1 . 1 1 . 4 Catastrophic 9 | . . 3 . . 3 . 1 . . . . 2 . . . . . . . . . . . . . . . . . . . . . . . Database Lockouts 1 | . . . . . . . . . . . . . . . 1 . . . . . . . . . . . . . . . . . . . . Manual 242 | . 8 11 . 2 6 . 28 . . . . 37 . 17 7 1 . . 38 . . . . 32 . . . . 7 11 . 6 11 4 16 Terminals 267 | . 9 17 . 5 8 . 28 . . . . 30 . 12 19 2 . 4 43 . . . . 27 . . . . 7 8 . 6 13 8 21 Fabricators 97 | . . . . . . . 14 . . . . 12 . 13 . . . . 24 . . . . 16 . . . . 3 6 . 3 3 3 . Repair Stations 80 | . 3 4 . . . . 11 . . . . 2 . 2 . . . . 20 . . . . 13 . . . . . . . . 12 7 6 Recycling Units 2 | . . . . . . . . . . . . 1 . . . . . . . . . . . . . . . . . 1 . . . . . Scanalyzers 15 | . . . . . . . 5 . . . . . . 4 . . . . . . . . . . . . . . 3 . . . 3 . . Garrison Access 23 | . . . . . . . 1 . . . . 7 . 4 . . . 1 1 . . . . 3 . . . . 1 . . 2 1 2 . Terminal Hacks 165 | . 3 7 . 2 . . 9 1 . 2 . 10 . 5 14 1 4 3 27 1 . 17 . 18 . . 2 . 5 4 . 5 7 6 12 Record 13 | . . 2 . 1 . . . . . . . . . . . . 4 . . . . 5 . . . . . . . . . . . . 1 Part Schematic 28 | . . . . . . . 2 . . 2 . 5 . . 1 . . 1 5 . . 4 . 4 . . . . 1 . . 2 1 . . Robot Analysis 7 | . 1 2 . . . . . . . . . . . . . . . . . . . 4 . . . . . . . . . . . . . Prototype ID Bank 6 | . . . . . . . . . . . . . . . 1 . . 1 . . . 4 . . . . . . . . . . . . . Open Door 12 | . . . . . . . . 1 . . . . . . 3 1 . . . 1 . . . . . . 2 . . . . . . 3 1 Level Access Points 1 | . . . . . . . . . . . . . . . . . . 1 . . . . . . . . . . . . . . . . . Branch Access Points 7 | . . . . . . . 1 . . . . . . 1 . . . . 1 . . . . 1 . . . . 1 . . 1 . 1 . Machine Index 7 | . . . . . . . . . . . . . . 1 . . . . 1 . . . . . . . . . . 1 . 1 1 1 1 Terminal Index 5 | . . . . . . . 1 . . . . . . . . . . . 1 . . . . 1 . . . . 1 . . . . . 1 Fabricator Index 2 | . . . . . . . . . . . . . . . . . . . . . . . . 1 . . . . 1 . . . . . . Alert Level 8 | . . 1 . . . . . . . . . . . 1 2 . . . 2 . . . . . . . . . 1 . . . . . 1 Unreport Threat 15 | . 1 1 . 1 . . . . . . . . . . 5 . . . 4 . . . . 3 . . . . . . . . . . . Locate Traps 10 | . 1 . . . . . . . . . . . . 1 1 . . . 4 . . . . 1 . . . . . 1 . . . . 1 Disarm Traps 1 | . . . . . . . . . . . . . . . . . . . . . . . . . . . . . . . . . 1 . . Dispatch Records 4 | . . . . . . . . . . . . 1 . . . . . . 1 . . . . 2 . . . . . . . . . . . Transport Status 1 | . . 1 . . . . . . . . . . . . . . . . . . . . . . . . . . . . . . . . . Investigation Status 1 | . . . . . . . . . . . . . . . . . . . 1 . . . . . . . . . . . . . . . . Recall Investigation 11 | . . . . . . . 3 . . . . 2 . . . . . . 2 . . . . 2 . . . . . 1 . . 1 . . Recall Extermination 10 | . . . . . . . 1 . . . . 2 . 1 . . . . 3 . . . . 2 . . . . . . . . . . 1 Recall Reinforcements 1 | . . . . . . . . . . . . . . . 1 . . . . . . . . . . . . . . . . . . . . Recall Assault 2 | . . . . . . . . . . . . . . . . . . . 1 . . . . . . . . . . . . . 1 . . Zone Layout 10 | . . . . . . . 1 . . . . . . . . . . . 1 . . . . 1 . . . . . 1 . 1 1 1 3 Protovariant Controls 1 | . . . . . . . . . . . . . . . . . . . . . . . . . . . . . . . . . 1 . . Disengage Seal 2 | . . . . . . . . . . . . . . . . . . . . . . . . . . . . . . . . . . . 2 Fabricator Hacks 65 | . . . . . . . 10 . . . . 9 . 8 . . . . 15 . . . . 11 . . . . 2 4 . 2 2 2 . Network Status 3 | . . . . . . . 2 . . . . . . . . . . . 1 . . . . . . . . . . . . . . . . Load Schematic 35 | . . . . . . . 5 . . . . 5 . 4 . . . . 8 . . . . 7 . . . . 1 2 . 1 1 1 . Build 27 | . . . . . . . 3 . . . . 4 . 4 . . . . 6 . . . . 4 . . . . 1 2 . 1 1 1 . Repair Station Hacks 78 | . 3 4 . . . . 10 . . . . 2 . 2 . . . . 20 . . . . 12 . . . . . . . . 12 7 6 Scan Component 39 | . 2 2 . . . . 5 . . . . 1 . 1 . . . . 10 . . . . 6 . . . . . . . . 6 3 3 Repair 38 | . 1 2 . . . . 5 . . . . 1 . 1 . . . . 10 . . . . 6 . . . . . . . . 6 3 3 Refit 1 | . . . . . . . . . . . . . . . . . . . . . . . . . . . . . . . . . . 1 . Recycling Unit Hacks . | . . . . . . . . . . . . . . . . . . . . . . . . . . . . . . . . . . . . Scanalyzer 12 | . . . . . . . 3 . . . . . . 4 . . . . . . . . . . . . . . 3 . . . 2 . . Insert Component 7 | . . . . . . . 1 . . . . . . 2 . . . . . . . . . . . . . . 2 . . . 2 . . Analyze 5 | . . . . . . . 2 . . . . . . 2 . . . . . . . . . . . . . . 1 . . . . . . Garrison Access Hacks 11 | . . . . . . . 1 . . . . 2 . . . . . 1 1 . . . . . . . . . 1 . . 2 1 2 . Seal Access 11 | . . . . . . . 1 . . . . 2 . . . . . 1 1 . . . . . . . . . 1 . . 2 1 2 . Unauthorized Hacks 103 | . 1 2 . . 3 . 13 . . . . 14 . 13 1 . . . 17 . . . . 16 . . . . 1 6 . 1 7 3 5 Terminals 59 | . 1 2 . . 3 . 9 . . . . 7 . 5 1 . . . 9 . . . . 7 . . . . . 3 . . 5 2 5 Track 5 | . . . . . . . 1 . . . . . . . . . . . 1 . . . . . . . . . . . . . 1 1 1 Assimilate 16 | . . . . . 2 . 3 . . . . . . 2 . . . . 2 . . . . 2 . . . . . 1 . . 2 1 1 Botnet 31 | . . 1 . . 1 . 4 . . . . 6 . 3 1 . . . 6 . . . . 3 . . . . . 2 . . 2 . 2 Disrupt 1 | . . . . . . . . . . . . . . . . . . . . . . . . 1 . . . . . . . . . . . Operators 6 | . 1 1 . . . . 1 . . . . 1 . . . . . . . . . . . 1 . . . . . . . . . . 1 Fabricators 30 | . . . . . . . 4 . . . . 3 . 4 . . . . 8 . . . . 5 . . . . 1 2 . 1 1 1 . Prioritize 24 | . . . . . . . 3 . . . . 2 . 4 . . . . 6 . . . . 3 . . . . 1 2 . 1 1 1 . Recompile 6 | . . . . . . . 1 . . . . 1 . . . . . . 2 . . . . 2 . . . . . . . . . . . Repair Stations 1 | . . . . . . . . . . . . . . . . . . . . . . . . 1 . . . . . . . . . . . Mechanics 1 | . . . . . . . . . . . . . . . . . . . . . . . . 1 . . . . . . . . . . . Recycling Units 2 | . . . . . . . . . . . . 1 . . . . . . . . . . . . . . . . . 1 . . . . . Recyclers 2 | . . . . . . . . . . . . 1 . . . . . . . . . . . . . . . . . 1 . . . . . Scanalyzers 1 | . . . . . . . . . . . . . . . . . . . . . . . . . . . . . . . . . 1 . . Researchers 1 | . . . . . . . . . . . . . . . . . . . . . . . . . . . . . . . . . 1 . . Garrison Access 10 | . . . . . . . . . . . . 3 . 4 . . . . . . . . . 3 . . . . . . . . . . . Broadcast 3 | . . . . . . . . . . . . 1 . 1 . . . . . . . . . 1 . . . . . . . . . . . Redirect 4 | . . . . . . . . . . . . 1 . 2 . . . . . . . . . 1 . . . . . . . . . . . Watchers 3 | . . . . . . . . . . . . 1 . 1 . . . . . . . . . 1 . . . . . . . . . . . Data Cores Recovered . | . . . . . . . . . . . . . . . . . . . . . . . . . . . . . . . . . . . . Used . | . . . . . . . . . . . . . . . . . . . . . . . . . . . . . . . . . . . . Hacking Detections 95 | . 3 5 . 2 3 . 10 . . . . 13 . 10 1 1 . 1 15 . . . . 8 . . . . 3 4 . 2 4 5 5 Full Trace Events 25 | . 1 . . 1 1 . 4 . . . . 2 . 4 . . . . 4 . . . . 2 . . . . 1 2 . 1 1 1 . Feedback Events . | . . . . . . . . . . . . . . . . . . . . . . . . . . . . . . . . . . . . Feedback Blocked . | . . . . . . . . . . . . . . . . . . . . . . . . . . . . . . . . . . . . Robot Schematics Acquired 1 | . . . . . . . . . . . . . . . . . . . . . . . . . . . . . . . . . 1 . . Robots Built . | . . . . . . . . . . . . . . . . . . . . . . . . . . . . . . . . . . . . Authchips . | . . . . . . . . . . . . . . . . . . . . . . . . . . . . . . . . . . . . Time . | . . . . . . . . . . . . . . . . . . . . . . . . . . . . . . . . . . . . Total Robot Build Rating . | . . . . . . . . . . . . . . . . . . . . . . . . . . . . . . . . . . . . Part Schematics Acquired 32 | . . . . . . . 3 . . 2 . 5 . 2 1 . . 1 5 . . 4 . 4 . . . . 2 . . 2 1 . . Parts Built 27 | . . . . . . . 3 . . . . 4 . 4 . . . . 6 . . . . 4 . . . . 1 2 . 1 1 1 . Authchips 6 | . . . . . . . . . . . . 2 . . . . . . 2 . . . . 2 . . . . . . . . . . . Time 1236 | . . . . . . . 141 . . . . 142 . 114 . . . . 235 . . . . 287 . . . . 31 133 . 46 76 31 . Total Part Build Rating 170 | . . . . . . . 15 . . . . 22 . 25 . . . . 38 . . . . 29 . . . . 7 15 . 7 5 7 . Parts Repaired 38 | . 1 2 . . . . 5 . . . . 1 . 1 . . . . 10 . . . . 6 . . . . . . . . 6 3 3 Time 1438 | . 26 52 . . . . 230 . . . . 14 . 30 . . . . 338 . . . . 380 . . . . . . . . 150 130 88 Parts Recycled . | . . . . . . . . . . . . . . . . . . . . . . . . . . . . . . . . . . . . Recycled Matter . | . . . . . . . . . . . . . . . . . . . . . . . . . . . . . . . . . . . . Retrieved Matter . | . . . . . . . . . . . . . . . . . . . . . . . . . . . . . . . . . . . . Retrieved Components . | . . . . . . . . . . . . . . . . . . . . . . . . . . . . . . . . . . . . Parts Scanalyzed 4 | . . . . . . . 1 . . . . . . 2 . . . . . . . . . . . . . . 1 . . . . . . Part Schematics Acquired 4 | . . . . . . . 1 . . . . . . 2 . . . . . . . . . . . . . . 1 . . . . . . Parts Damaged . | . . . . . . . . . . . . . . . . . . . . . . . . . . . . . . . . . . . . Bothacking | -11 -10 -9 -9 -8 -7 -7 -7 -7 -7 -7 -6 -6 -6 -6 -6 -6 -6 -6 -5 -5 -5 -5 -4 -4 -4 -4 -4 -3 -3 -3 -3 -2 -2 -1 -1 ------------ Run | Scr Mat Mat Min Mat Fac Was Fac Low Low Zio Pro Fac Was Fac Ext Cet Arc Hub Fac Upp Upp Zhi Pro Fac Upp Upp War Pro Res Arm Lab Res Tes Acc Com Used RIF Installer . | . . . . . . . . . . . . . . . . . . . . . . . . . . . . . . . . . . . . Robots Hacked 1 | . . . . . . . . . . . . . . . . . . . . . . . . . . . . . . . . . . . 1 Non-combat . | . . . . . . . . . . . . . . . . . . . . . . . . . . . . . . . . . . . . Combat . | . . . . . . . . . . . . . . . . . . . . . . . . . . . . . . . . . . . . Robot Hacks Applied . | . . . . . . . . . . . . . . . . . . . . . . . . . . . . . . . . . . . . Manual 1 | . . . . . . . . . . . . . . . . . . . . . . . . . . . . . . . . . . . 1 Relay Couplers Released 4 | . . . . . . . . . . . . . . . . . . 2 . . . . . . . . . . . . . . 2 . . Machine Destruction 4 | . . . . . . . . . . . . . . . . . . 2 . . . . . . . . . . . . . . 2 . . Fabnet Peak Effective % . | . . . . . . . . . . . . . . . . . . . . . . . . . . . . . . . . . . . . Robots Rewired 14 | . . . . . . . . . . . . . . . 14 . . . . . . . . . . . . . . . . . . . . Allies Hacked 1 | . . . . . . . . . . . . . . . . . . . . . . . . 1 . . . . . . . . . . . Hacks Repelled . | . . . . . . . . . . . . . . . . . . . . . . . . . . . . . . . . . . . . Allies | -11 -10 -9 -9 -8 -7 -7 -7 -7 -7 -7 -6 -6 -6 -6 -6 -6 -6 -6 -5 -5 -5 -5 -4 -4 -4 -4 -4 -3 -3 -3 -3 -2 -2 -1 -1 -------- Run | Scr Mat Mat Min Mat Fac Was Fac Low Low Zio Pro Fac Was Fac Ext Cet Arc Hub Fac Upp Upp Zhi Pro Fac Upp Upp War Pro Res Arm Lab Res Tes Acc Com Total Allies 79 | . . . . . 1 19 3 . . . . . 20 2 20 5 . . 2 . . . . 2 . . . . . 1 . . 2 1 1 Largest Group 19 | . . . . . 1 19 1 1 . . . . 19 1 18 12 9 8 4 . . . . 1 . . . . . 1 . . 1 1 1 Highest-Rated Group 803 | . . . . . 10 475 26 24 . . . . 684 26 644 803 748 589 263 . . . . 26 . . . . . 45 . . 45 45 45 Highest-Rated Ally 159 | . . . . . 10 35 26 24 . . . . 50 26 159 159 159 96 96 . . . . 26 . . . . . 45 . . 45 45 45 Total Orders 8 | . . . . . . . . . . . . . . . 6 . . . 1 . . . . . . . . . . . . 1 . . . STAY 7 | . . . . . . . . . . . . . . . 6 . . . 1 . . . . . . . . . . . . . . . . RETURN 1 | . . . . . . . . . . . . . . . . . . . . . . . . . . . . . . . . 1 . . . Ally Attacks 467 | . . . . . . 120 . . . . . . 76 . 105 87 . 23 17 . . . . . . . . . . . . 7 . . 32 Total Damage 12465 | . . . . . . 3383 . . . . . . 2416 . 2691 2033 . 668 409 . . . . . . . . . . . . 151 . . 714 Kills 56 | . . . . . . 9 . . . . . . 2 . 21 13 . 6 4 . . . . . . . . . . . . 1 . . . Allies Corrupted 3 | . . . . . . . . . . . . . . . 1 . . . . . . . . . . . . . . . . . . . 2 Allies Melted 1 | . . . . . . . . . . . . . . . . . . . 1 . . . . . . . . . . . . . . . . Intel | -11 -10 -9 -9 -8 -7 -7 -7 -7 -7 -7 -6 -6 -6 -6 -6 -6 -6 -6 -5 -5 -5 -5 -4 -4 -4 -4 -4 -3 -3 -3 -3 -2 -2 -1 -1 ------- Run | Scr Mat Mat Min Mat Fac Was Fac Low Low Zio Pro Fac Was Fac Ext Cet Arc Hub Fac Upp Upp Zhi Pro Fac Upp Upp War Pro Res Arm Lab Res Tes Acc Com Robot Analysis Total 7 | . 1 2 . . . . . . . . . . . . . . . . . . . 4 . . . . . . . . . . . . . Derelict Logs Recovered 13 | . . . . . . . . 1 1 2 2 . . . . . . . . 2 1 . 2 . 1 1 . . . . . . . . . Drone Launches 8 | . . . . . . . . . . . . . . . . . . . . . . . . . . . . . . . . 2 . . 6 Drone Recoveries 2 | . . . . . . . . . . . . . . . . . . . . . . . . . . . . . . . . 2 . . . Exploration | -11 -10 -9 -9 -8 -7 -7 -7 -7 -7 -7 -6 -6 -6 -6 -6 -6 -6 -6 -5 -5 -5 -5 -4 -4 -4 -4 -4 -3 -3 -3 -3 -2 -2 -1 -1 ------------- Run | Scr Mat Mat Min Mat Fac Was Fac Low Low Zio Pro Fac Was Fac Ext Cet Arc Hub Fac Upp Upp Zhi Pro Fac Upp Upp War Pro Res Arm Lab Res Tes Acc Com Turns Passed 19545 | . 2202 1926 248 2155 368 105 1174 100 74 218 282 765 65 816 605 233 48 138 1814 437 174 48 383 1244 52 85 266 289 190 489 3 397 909 504 739 Spaces Moved 25454 | 1 855 914 128 793 696 317 2246 303 242 775 655 1954 222 1307 678 185 47 197 2403 611 429 139 531 1770 198 380 601 330 448 538 15 865 1287 616 1778 Core . | . . . . . . . . . . . . . . . . . . . . . . . . . . . . . . . . . . . . Treads 1464 | . 282 914 128 140 . . . . . . . . . . . . . . . . . . . . . . . . . . . . . . . Legs 1243 | 1 573 . . 653 16 . . . . . . . . . . . . . . . . . . . . . . . . . . . . . . Wheels . | . . . . . . . . . . . . . . . . . . . . . . . . . . . . . . . . . . . . Hover . | . . . . . . . . . . . . . . . . . . . . . . . . . . . . . . . . . . . . Flight 22747 | . . . . . 680 317 2246 303 242 775 655 1954 222 1307 678 185 47 197 2403 611 429 139 531 1770 198 380 601 330 448 538 15 865 1287 616 1778 Fastest Speed 15 | 120 120 160 160 160 26 26 26 26 26 26 26 26 26 26 26 26 26 26 21 21 21 21 21 15 22 22 22 22 19 19 19 19 17 16 16 Average Speed 40 | 120 216 160 160 205 29 26 26 26 26 26 26 26 26 26 27 26 26 26 22 21 21 21 21 21 22 22 22 22 19 19 19 19 18 18 16 Slowest Speed 540 | 120 260 160 160 540 190 29 26 26 26 26 26 29 29 26 107 26 26 26 96 96 21 96 96 97 22 22 22 22 20 20 19 21 88 19 94 Overloaded Moves 8 | . . . . . . . . . . . . . . . . . . . . . . . . 8 . . . . . . . . . . . Propulsion Burnouts . | . . . . . . . . . . . . . . . . . . . . . . . . . . . . . . . . . . . . Robots Hopped 76 | . . . . . 1 . 8 . . . . 7 . 5 3 . . . 8 . . . . 5 . . . . 6 3 . 12 5 5 8 Cave-ins Triggered 1 | . . . . . . . . . . . . . . . . . . . . . . . . . . . . . . . . . 1 . . Teleports 1 | . . . . . . . . . . . . . . . . . . . . . . . . . . . . . . 1 . . . . . Exploration Rate (%) 50 | 2 77 80 32 67 23 94 45 56 41 83 82 44 94 35 64 66 64 20 49 56 54 60 67 41 42 60 67 39 18 25 6 23 79 18 54 Regions Visited 35 Branch Regions 21 Pre-discovered Areas 9 | . . . . . . . . . . 4 1 . . . . . . . . 1 . 3 . . . . . . . . . . . . . Known Exits Taken 27 | . . . . 1 . . 1 1 1 1 1 . . 1 1 1 1 1 1 1 1 1 1 1 1 1 1 1 1 1 1 1 1 1 . Unknown Exits Taken 4 | 1 1 1 1 . . . . . . . . . . . . . . . . . . . . . . . . . . . . . . . . Scrap Searched 17 | . . . . . . . . 1 3 4 2 . . . . . . . . 1 1 . . . 1 . . 4 . . . . . . . Spaces Dug 388 | . . 1 . 1 6 . 34 . 36 . 38 25 . 30 44 . . 5 36 3 19 . 1 33 1 . 1 2 2 8 . 17 9 10 26 Terrain Destroyed 989 | . 2 1 . 1 6 . 34 . 36 . 63 25 . 30 174 25 . 167 36 83 30 . 97 103 1 . 1 2 2 8 . 17 9 10 26 Melee 252 | . . 1 . 1 6 . 34 . . . 4 25 . 30 3 . . 5 36 3 1 . 1 26 1 . 1 2 2 8 . 17 9 10 26 Projectile . | . . . . . . . . . . . . . . . . . . . . . . . . . . . . . . . . . . . . AOE 737 | . 2 . . . . . . . 36 . 59 . . . 171 25 . 162 . 80 29 . 96 77 . . . . . . . . . . . Terrain Rammed . | . . . . . . . . . . . . . . . . . . . . . . . . . . . . . . . . . . . . Walls Destroyed . | . . . . . . . . . . . . . . . . . . . . . . . . . . . . . . . . . . . . Machines Disabled . | . . . . . . . . . . . . . . . . . . . . . . . . . . . . . . . . . . . . Actions | -11 -10 -9 -9 -8 -7 -7 -7 -7 -7 -7 -6 -6 -6 -6 -6 -6 -6 -6 -5 -5 -5 -5 -4 -4 -4 -4 -4 -3 -3 -3 -3 -2 -2 -1 -1 --------- Run | Scr Mat Mat Min Mat Fac Was Fac Low Low Zio Pro Fac Was Fac Ext Cet Arc Hub Fac Upp Upp Zhi Pro Fac Upp Upp War Pro Res Arm Lab Res Tes Acc Com Total 33074 | . 1035 1214 146 1090 826 335 2756 321 248 790 744 2131 228 1713 1062 366 82 264 3530 901 507 155 771 2536 201 380 732 540 516 895 14 1041 1908 952 2144 Wait 6021 | . 32 100 2 43 70 17 449 16 2 . 71 117 2 359 283 175 36 52 1011 277 75 2 218 677 . . 94 200 42 338 . 137 557 297 270 Move 25276 | . 854 913 127 792 694 316 2230 302 241 774 654 1940 221 1296 672 184 46 196 2387 610 428 138 530 1759 197 379 600 329 435 531 14 844 1276 606 1761 Hop 68 | . . . . . 1 . 7 . . . . 7 . 5 2 . . . 7 . . . . 5 . . . . 6 3 . 8 5 4 8 Pick Up 144 | . 16 30 . 22 . 1 6 . . 3 . 5 . 1 2 1 . . 12 . . 1 . 8 . . 7 1 4 2 . 2 11 6 3 Fast Attach 97 | . 3 6 1 12 7 1 3 . . 2 . 4 3 . . . . 1 7 . . 6 . 5 . . 9 2 2 1 . 4 7 2 9 Attach 63 | . 2 4 1 5 10 . . . . . . 3 . 1 2 . . . 4 . . . 1 7 . . . 1 2 1 . 2 5 4 8 Detach 10 | . . . . . 1 . . . . . . . . . . . . . . . . . . 2 . . . . . . . 1 4 . 2 Swap 186 | . 16 22 2 24 4 . 8 3 3 5 6 3 . 6 10 4 . 2 13 2 1 3 3 15 2 1 6 2 4 3 . 6 3 . 4 Drop 205 | . 9 38 1 41 17 . 5 . . 6 . 4 2 3 3 1 . 1 2 . . 5 . 2 . . 14 2 4 3 . 11 11 2 18 Fire 327 | . 85 77 12 103 . . . . 2 . 4 . . . 10 1 . 1 . 9 2 . 8 7 . . . . . . . . . . 6 Melee 575 | . . 19 . 47 22 . 48 . . . 9 48 . 42 8 . . 11 87 3 1 . 11 49 2 . 2 3 17 13 . 26 29 31 47 Ram . | . . . . . . . . . . . . . . . . . . . . . . . . . . . . . . . . . . . . Kick 13 | . 12 . . 1 . . . . . . . . . . . . . . . . . . . . . . . . . . . . . . . Crush 11 | . 6 5 . . . . . . . . . . . . . . . . . . . . . . . . . . . . . . . . . Escape Stasis 38 | . . . . . . . . . . . . . . . 30 . . . . . . . . . . . . . . . . . . . 8 Rewire 40 | . . . . . . . . . . . . . . . 40 . . . . . . . . . . . . . . . . . . . . Trap . | . . . . . . . . . . . . . . . . . . . . . . . . . . . . . . . . . . . . Miscellaneous . | . . . . . . . . . . . . . . . . . . . . . . . . . . . . . . . . . . . . Route ------- -11/Scrapyard -10/Materials (discovered 4 exits: *Mat x2 / [*Min x2]) -9/Materials (discovered 5 exits: *Mat x3 / [*Min] / [*Sto]) -9/Mines (discovered 2 exits: *Mat / *Zio) -8/Materials -7/Factory -7/Waste -7/Factory (discovered 3 exits: *Fac / *Low x2) -7/Lower Caves -7/Lower Caves (discovered 2 exits: *Fac / *Zio) -7/Zion -6/Proximity Caves -6/Factory (discovered 5 exits: *Fac x3 / *Low x2) -6/Waste -6/Factory (discovered 4 exits: *Low x2 / *Ext x2) -6/Extension (discovered 2 exits: *Fac / *Cet) -6/Cetus (discovered 2 exits: *Fac / *Arc) -6/Archives -6/Hub_04(d) (discovered 4 exits: *Fac x4) -5/Factory (discovered 4 exits: *Fac x2 / *Upp x2) -5/Upper Caves -5/Upper Caves (discovered 2 exits: *Fac / *Zhi) -5/Zhirov -4/Proximity Caves -4/Factory (discovered 4 exits: *Res x2 / *Upp x2) -4/Upper Caves -4/Upper Caves (discovered 2 exits: *Res / *War) -4/Warlord -3/Proximity Caves -3/Research (discovered 4 exits: *Res / *Arm / Qua x2) -3/Armory -3/Lab -2/Research (discovered 3 exits: *Acc / *Tes x2) -2/Testing -1/Access -1/Command To Epsilon Eridani History --------- Turn | Location | Event 1 | -11/Scrapyard | Discovered new exit (range 0) 1 | -11/Scrapyard | Entered Materials 116 | -10/Materials | Discovered new exit (range 8) 315 | -10/Materials | Build established: Mutant 670 | -10/Materials | Discovered new exit (range 13) 727 | -10/Materials | Discovered new exit (range 15) 1015 | -10/Materials | Discovered new exit (range 16) 1166 | -10/Materials | Core integrity fell below 50% 1230 | -10/Materials | Repaired Assault Rifle 2203 | -10/Materials | Entered another Materials area 2203 | -9/Materials | Evolved 2 slots: Propulsion x1, Utility x1 2294 | -9/Materials | Repaired Lgt. Treads 2322 | -9/Materials | Repaired Lgt. Assault Rifle 2423 | -9/Materials | Discovered new exit (range 4) 2620 | -9/Materials | Discovered new exit (range 3) 2920 | -9/Materials | Discovered new exit (range 15) 3567 | -9/Materials | Build established: Scavenger-Mutant 3572 | -9/Materials | Discovered new exit (range 16) 3713 | -9/Materials | Discovered new exit (range 7) 4015 | -9/Materials | Core integrity fell below 50% 4060 | -9/Materials | Destroyed 8 combat bots 4129 | -9/Materials | Entered Mines 4179 | -9/Mines | Met a Derelict bent on vengeance 4333 | -9/Mines | A Derelict revealed a hidden shortcut to a safe place 4364 | -9/Mines | Discovered new exit (range 10) 4377 | -9/Mines | Entered Materials 4377 | -8/Materials | Evolved 2 slots: Propulsion x1, Utility x1 4558 | -8/Materials | Lost 3 parts (2n1w) 5623 | -8/Materials | Discovered new exit (range 8) 5914 | -8/Materials | Garrison activated, responded to threat 6495 | -8/Materials | Identified exit to Factory 6532 | -8/Materials | Entered Factory 6532 | -7/Factory | Evolved 2 slots: Utility x2 6872 | -7/Factory | Build established: Hacker-Sprinter 6900 | -7/Factory | Manually triggered Chute Trap 6900 | -7/Factory | Sucked down chute 6900 | -7/Factory | Entered Waste 6906 | -7/Waste | Spotted C-40 Crusher 6906 | -7/Waste | Spotted C-40 Crusher 6921 | -7/Waste | Spotted C-40 Crusher 6922 | -7/Waste | Spotted C-40 Crusher 6925 | -7/Waste | Spotted C-40 Crusher 6930 | -7/Waste | Spotted C-40 Crusher 6935 | -7/Waste | Warlord forces began an assault 6950 | -7/Waste | Allies destroyed C-40 Crusher 6953 | -7/Waste | Allies destroyed C-40 Crusher 6953 | -7/Waste | Allies destroyed C-40 Crusher 6957 | -7/Waste | Allies destroyed C-40 Crusher 6958 | -7/Waste | Allies destroyed C-40 Crusher 6961 | -7/Waste | Allies destroyed C-40 Crusher 6995 | -7/Waste | Discovered new exit (range 12) 7004 | -7/Waste | Identified exit to Factory 7005 | -7/Waste | Entered Factory 7005 | -7/Factory | Accompanied by 2 allies 7095 | -7/Factory | Repaired Adv. System Shield 7134 | -7/Factory | Repaired Imp. Light Armor Plating 7173 | -7/Factory | Repaired Katana 7238 | -7/Factory | Repaired Imp. VTOL Module 7277 | -7/Factory | Repaired Katana 7515 | -7/Factory | Discovered new exit (range 15) 7521 | -7/Factory | Identified exit to Lower Caves 7538 | -7/Factory | Discovered exit to Lower Caves (range 15) 7713 | -7/Factory | Fabricated Imp. Hacking Suite? 7794 | -7/Factory | Fabricated Imp. Hacking Suite? 7847 | -7/Factory | Discovered new exit (range 13) 8034 | -7/Factory | Fabricated Imp. Hacking Suite? 8179 | -7/Factory | Entered Lower Caves 8179 | -7/Lower Caves | Accompanied by 1 ally 8180 | -7/Lower Caves | Identified exit to Lower Caves 8279 | -7/Lower Caves | Entered another Lower Caves area 8286 | -7/Lower Caves | Discovered new exit (range 3) 8287 | -7/Lower Caves | Identified exit to Factory 8347 | -7/Lower Caves | Learned Factory trap positions 8351 | -7/Lower Caves | Discovered new exit (range 8) 8352 | -7/Lower Caves | Identified exit to Zion 8353 | -7/Lower Caves | Entered Zion 8359 | -7/Zion | Given the Hacking Drone Bay 8365 | -7/Zion | System corruption cleaned by Quarantine Array 8367 | -7/Zion | Given A8's code to call for help 8379 | -7/Zion | Discovered new exit (range 16) 8392 | -7/Zion | Learned location of Data Miner (-6) 8405 | -7/Zion | Learned location of Quarantine (-3) 8411 | -7/Zion | Received a visual enhancement algorithm 8423 | -7/Zion | Learned location of Warlord (-4) 8431 | -7/Zion | Found GAL Module 8439 | -7/Zion | Learned Factory terminal intel 8444 | -7/Zion | Learned Factory garrison access intel 8461 | -7/Zion | Found Prototype Launcher 8461 | -7/Zion | Identified Rocket Array 8567 | -7/Zion | Identified exit to Proximity Caves 8571 | -7/Zion | Entered Proximity Caves 8606 | -6/Proximity Caves | Learned Factory stockpile data 8770 | -6/Proximity Caves | Attracted the attention of an 0b10 checkpoint 8852 | -6/Proximity Caves | Discovered exit to Factory (range 4) 8853 | -6/Proximity Caves | Entered Factory 8853 | -6/Factory | Evolved 2 slots: Utility x2 8854 | -6/Factory | Loaded intel: 106 trap records 8856 | -6/Factory | Loaded intel: 28 terminal locations 8857 | -6/Factory | Loaded intel: 4 garrison access locations 8858 | -6/Factory | Discovered new exit (range 10) 8859 | -6/Factory | Discovered new exit (range 16) 8860 | -6/Factory | Identified exit to Lower Caves 8862 | -6/Factory | Identified exit to Factory 8901 | -6/Factory | Discovered exit to Factory (range 16) 9161 | -6/Factory | Discovered exit to Lower Caves (range 5) 9199 | -6/Factory | Discovered exit to Factory (range 8) 9310 | -6/Factory | Fabricated Adv. Hacking Suite? 9436 | -6/Factory | Fabricated Exp. Utility Shielding? 9473 | -6/Factory | Fabricated Adv. Sensor Array (x1) 9506 | -6/Factory | Fabricated Adv. Hacking Suite (x1) 9546 | -6/Factory | Spotted B-75 Beast 9590 | -6/Factory | Repaired Imp. Medium Armor Plating 9618 | -6/Factory | Sucked down chute 9618 | -6/Factory | Entered Waste 9619 | -6/Waste | Met a frightened Derelict 9621 | -6/Waste | Spotted C-40 Crusher 9624 | -6/Waste | Spotted C-40 Crusher 9624 | -6/Waste | Spotted C-40 Crusher 9627 | -6/Waste | Spotted C-40 Crusher 9643 | -6/Waste | Warlord forces began an assault 9666 | -6/Waste | Allies destroyed C-40 Crusher 9679 | -6/Waste | Discovered new exit (range 14) 9683 | -6/Waste | Identified exit to Factory 9683 | -6/Waste | Entered Factory 9705 | -6/Factory | Build established: Wizard-Sprinter 9711 | -6/Factory | Discovered exit to Lower Caves (range 15) 9824 | -6/Factory | Spotted B-75 Beast 10005 | -6/Factory | Fabricated Lrn. Sensor Array (x1) 10031 | -6/Factory | Identified exit to Extension 10151 | -6/Factory | Fabricated Mni. Smartbomb Launcher? 10252 | -6/Factory | Repaired Imp. VTOL Module 10284 | -6/Factory | Fabricated Adv. Hacking Suite? 10288 | -6/Factory | Fabricated Adv. Hacking Suite? 10499 | -6/Factory | Entered Extension 10510 | -6/Extension | Rescued a captive Derelict 10511 | -6/Extension | Rescued a captive Derelict 10702 | -6/Extension | Rescued a captive Derelict 10704 | -6/Extension | Rescued a captive Derelict 10750 | -6/Extension | Rescued a captive Derelict 10755 | -6/Extension | Energy Cycler disabled 10760 | -6/Extension | Rescued A7 10972 | -6/Extension | Central database locked down 10978 | -6/Extension | Discovered exit to Factory (range 10) 10978 | -6/Extension | Discovered new exit (range 6) 10982 | -6/Extension | Identified exit to Cetus 11104 | -6/Extension | Entered Cetus 11104 | -6/Cetus | Accompanied by 12 allies (A7) 11109 | -6/Cetus | Acquired a Cetus Manufacturing Module code from A7 11135 | -6/Cetus | Spotted Cetus Guard 11135 | -6/Cetus | Spotted Cetus Guard 11139 | -6/Cetus | Spotted Cetus Guard 11140 | -6/Cetus | Spotted Cetus Guard 11144 | -6/Cetus | Allies destroyed Cetus Guard 11148 | -6/Cetus | Allies destroyed Cetus Guard 11153 | -6/Cetus | Allies destroyed Cetus Guard 11156 | -6/Cetus | Allies destroyed Cetus Guard 11170 | -6/Cetus | Started Cetus Manufacturing Module 11188 | -6/Cetus | Escorted A7 to Cetus Mainframe 11192 | -6/Cetus | Discovered new exit (range 16) 11195 | -6/Cetus | Manufactured an Enhanced Grunt 11220 | -6/Cetus | Manufactured an Enhanced Grunt 11245 | -6/Cetus | Manufactured an Enhanced Grunt 11270 | -6/Cetus | Manufactured an Enhanced Grunt 11279 | -6/Cetus | Spotted Cetus Guard 11295 | -6/Cetus | Manufactured an Enhanced Grunt 11305 | -6/Cetus | Discovered exit to Factory (range 15) 11307 | -6/Cetus | Met Revision 17 11315 | -6/Cetus | Identified exit to Archives 11337 | -6/Cetus | Entered Archives 11337 | -6/Archives | Accompanied by 9 allies (A7) 11340 | -6/Archives | Met Zhirov 11343 | -6/Archives | Read partially decrypted archive contents 11345 | -6/Archives | Received a hacking code to weaken MAIN.C 11345 | -6/Archives | Discovered new exit (range 16) 11346 | -6/Archives | Reinforcements dispatched to Archives 11348 | -6/Archives | Identified exit to Hub_04(d) 11385 | -6/Archives | Entered Hub_04(d) 11385 | -6/Hub_04(d) | Accompanied by 8 allies 11521 | -6/Hub_04(d) | Network Hub disabled 11523 | -6/Hub_04(d) | Entered Factory 11523 | -5/Factory | Accompanied by 4 allies 11523 | -5/Factory | Evolved 2 slots: Propulsion x1, Utility x1 11548 | -5/Factory | Fabricated Adv. Hacking Suite (x1) 11698 | -5/Factory | Repaired Mni. Smartbomb Launcher 11722 | -5/Factory | Repaired Cld. VTOL Module 11760 | -5/Factory | Repaired Centrium Medium Armor Plating 11823 | -5/Factory | First assault squad dispatched 11834 | -5/Factory | Fabricated Exp. Propulsion Shielding (x1) 11839 | -5/Factory | Discovered new exit (range 6) 11840 | -5/Factory | Identified exit to Upper Caves 12009 | -5/Factory | Discovered new exit (range 8) 12010 | -5/Factory | Identified exit to Factory 12194 | -5/Factory | Fabricated Exp. Hacking Suite (x1) 12242 | -5/Factory | Fabricated Exp. Signal Interpreter (x1) 12437 | -5/Factory | Fabricated Exp. Cesium-ion Thruster? 12510 | -5/Factory | Discovered exit to Factory (range 8) 12610 | -5/Factory | Repaired Exp. Cesium-ion Thruster 12641 | -5/Factory | Repaired Imp. VTOL Module 12664 | -5/Factory | Repaired Mic. Nuclear Core 12705 | -5/Factory | Repaired Exp. Utility Shielding 12788 | -5/Factory | Repaired Centrium Medium Armor Plating 12819 | -5/Factory | Repaired Imp. VTOL Module 12851 | -5/Factory | Repaired Imp. VTOL Module 13014 | -5/Factory | Fabricated Exp. System Shield? 13337 | -5/Factory | Entered Upper Caves 13637 | -5/Upper Caves | Attracted the attention of an 0b10 checkpoint 13768 | -5/Upper Caves | Discovered new exit (range 12) 13770 | -5/Upper Caves | Identified exit to Upper Caves 13774 | -5/Upper Caves | Entered another Upper Caves area 13827 | -5/Upper Caves | Discovered exit to Factory (range 7) 13851 | -5/Upper Caves | Learned location of 1 exit from Factory 13945 | -5/Upper Caves | Discovered new exit (range 15) 13948 | -5/Upper Caves | Identified exit to Zhirov 13948 | -5/Upper Caves | Entered Zhirov 13950 | -5/Zhirov | Discovered new exit (range 3) 13958 | -5/Zhirov | Learned location of Testing (-2) 13958 | -5/Zhirov | Learned location of Command (-1) 13978 | -5/Zhirov | Found Alien Artifact 13978 | -5/Zhirov | Identified Integrated Reactor 13978 | -5/Zhirov | Installed Integrated Reactor, increased core energy generation (+10) 13984 | -5/Zhirov | Found Alien Artifact 13993 | -5/Zhirov | Identified exit to Proximity Caves 13996 | -5/Zhirov | Entered Proximity Caves 14009 | -4/Proximity Caves | Learned Research garrison access intel 14015 | -4/Proximity Caves | Learned Research stockpile data 14376 | -4/Proximity Caves | Discovered exit to Factory (range 15) 14379 | -4/Proximity Caves | Entered Factory 14379 | -4/Factory | Evolved 2 slots: Utility x2 14380 | -4/Factory | Identified exit to Upper Caves 14507 | -4/Factory | Repaired Imp. VTOL Module 14563 | -4/Factory | Repaired Centrium Medium Armor Plating 14648 | -4/Factory | Discovered new exit (range 11) 14650 | -4/Factory | Identified exit to Research 14688 | -4/Factory | Discovered exit to Research (range 3) 14692 | -4/Factory | Garrison activated, responded to threat 14727 | -4/Factory | Spotted B-86 Titan 14833 | -4/Factory | Fabricated Exp. Hacking Suite (x1) 14940 | -4/Factory | Fabricated Exp. Sensor Array? 15081 | -4/Factory | Repaired Exp. Propulsion Shielding? 15141 | -4/Factory | Repaired Mic. Fission Core? 15226 | -4/Factory | Repaired Cld. Cesium-ion Thruster? 15309 | -4/Factory | Repaired Exp. Utility Shielding 15379 | -4/Factory | Search patrols dispatched 15495 | -4/Factory | Fabricated Exp. Hacking Suite (x1) 15543 | -4/Factory | Fabricated Exp. Hacking Suite (x1) 15623 | -4/Factory | Entered Upper Caves 15624 | -4/Upper Caves | Encountered a Warlord checkpoint 15628 | -4/Upper Caves | Learned Research emergency access door positions 15672 | -4/Upper Caves | Discovered new exit (range 12) 15675 | -4/Upper Caves | Identified exit to Upper Caves 15675 | -4/Upper Caves | Entered another Upper Caves area 15676 | -4/Upper Caves | Discovered exit to Research (range 13) 15724 | -4/Upper Caves | Learned location of 1 exit from Research 15759 | -4/Upper Caves | Discovered new exit (range 9) 15760 | -4/Upper Caves | Identified exit to Warlord 15760 | -4/Upper Caves | Entered Warlord 15826 | -4/Warlord | Visited the Vortex Lab 15827 | -4/Warlord | Found Prototype Energy Gun 15827 | -4/Warlord | Identified Vortex Shotgun 15831 | -4/Warlord | Found Prototype Energy Gun 15832 | -4/Warlord | Identified Vortex Rail 15836 | -4/Warlord | Found Vortex Shotgun 15848 | -4/Warlord | Warlord's base attacked by MAIN.C 15851 | -4/Warlord | Met Warlord 15866 | -4/Warlord | Found Prototype Device 15866 | -4/Warlord | Identified Exp. Phase Shifter 15875 | -4/Warlord | Found Prototype Device 15875 | -4/Warlord | Identified System Purifier 15877 | -4/Warlord | Found Prototype Processor 15877 | -4/Warlord | Identified Exp. Core Analyzer 15919 | -4/Warlord | Opened side exit 16020 | -4/Warlord | Discovered new exit (range 14) 16023 | -4/Warlord | Identified exit to Proximity Caves 16026 | -4/Warlord | Entered Proximity Caves 16052 | -3/Proximity Caves | Found Alien Artifact 16052 | -3/Proximity Caves | Identified Core Expander 16052 | -3/Proximity Caves | Installed Core Expander, added new Weapon slot 16223 | -3/Proximity Caves | Received a Behemoth hack from an annoying Tinkerer 16313 | -3/Proximity Caves | Discovered exit to Research (range 11) 16315 | -3/Proximity Caves | Entered Research 16315 | -3/Research | Evolved 2 slots: Propulsion x1, Utility x1 16316 | -3/Research | Identified exit to Armory 16319 | -3/Research | Loaded intel: 2 garrison access locations 16362 | -3/Research | Fabricated Assault Drone Bay (x1) 16368 | -3/Research | Found Exp. Signal Interpreter 16373 | -3/Research | Identified Transdimensional Reconstructor 16423 | -3/Research | Identified exit to Quarantine 16484 | -3/Research | Discovered new exit (range 7) 16505 | -3/Research | Entered Armory 16671 | -3/Armory | Warped through subspace to slip node 16671 | -3/Armory | Discovered new exit (range 1) 16671 | -3/Armory | Identified exit to Lab 16677 | -3/Armory | Spotted B-86 Titan 16789 | -3/Armory | Fabricated Nanosword? 16968 | -3/Armory | Fabricated Assault Drone Bay? 16994 | -3/Armory | Entered Lab 16994 | -3/Lab | Discovered new exit (range 9) 16996 | -3/Lab | Identified exit to Research 16997 | -3/Lab | Unable to decrypt terminal 16997 | -3/Lab | Entered Research 16997 | -2/Research | Warlord forces began assault on 0b10 16997 | -2/Research | Evolved 2 slots: Utility x2 17063 | -2/Research | Identified exit to Testing 17087 | -2/Research | Discovered new exit (range 14) 17105 | -2/Research | Fabricated Assault Drone Bay? 17107 | -2/Research | Research machine network offline 17113 | -2/Research | Met up with Warlord 17394 | -2/Research | Entered Testing 17397 | -2/Testing | Protovariant out of control (PX-KVFCZ4HIJC) 17397 | -2/Testing | Unleashed a protovariant (PX-KVFCZ4HIJC) 17574 | -2/Testing | Build established: Wizard-Ninja 17793 | -2/Testing | Repaired Exp. Propulsion Shielding 17815 | -2/Testing | Found Prototype Processor 17860 | -2/Testing | Discovered new exit (range 9) 17864 | -2/Testing | Identified Exp. Target Analyzer 17939 | -2/Testing | Repaired Lgt. Quantum Reactor 17944 | -2/Testing | Identified exit to Access 17999 | -2/Testing | Repaired Corrupted Lrg. Storage Unit 18110 | -2/Testing | Fabricated Exp. Utility Shielding (x1) 18134 | -2/Testing | Crushed by falling debris 18173 | -2/Testing | Repaired Centrium Medium Armor Plating 18200 | -2/Testing | Repaired Exp. Propulsion Shielding 18240 | -2/Testing | Repaired Exp. Utility Shielding 18303 | -2/Testing | Entered Access 18303 | -1/Access | Evolved 2 slots: Propulsion x2 18317 | -1/Access | Spotted B-99 Colossus 18372 | -1/Access | Repaired Nanosword 18483 | -1/Access | Identified exit to Command 18615 | -1/Access | Repaired Exp. Propulsion Shielding 18670 | -1/Access | Repaired Centrium Medium Armor Plating 18754 | -1/Access | Build established: Wizard-Sprinter 18773 | -1/Access | Fabricated Assault Drone Bay (x1) 18807 | -1/Access | Entered Command 18840 | -1/Command | Disengaged cave seal 18840 | -1/Command | Derelicts emerged from the dark tunnel 18840 | -1/Command | Welcomed Warlord to Command 18911 | -1/Command | P-80 Master assimilated allied 3D-E83(i) 18968 | -1/Command | Repaired Exp. Propulsion Shielding 18996 | -1/Command | Repaired Exp. Utility Shielding 19033 | -1/Command | Repaired Centrium Medium Armor Plating 19037 | -1/Command | Spotted B-99 Colossus 19197 | -1/Command | Spotted Executioner 19197 | -1/Command | Spotted Executioner 19197 | -1/Command | Spotted Executioner 19197 | -1/Command | Spotted Executioner 19197 | -1/Command | Spotted Striker 19197 | -1/Command | Spotted Striker 19197 | -1/Command | Spotted Alpha 7 19197 | -1/Command | Spotted Alpha 7 19400 | -1/Command | Spotted M Guard 19400 | -1/Command | Spotted Combat Programmer 19400 | -1/Command | Spotted Combat Programmer 19400 | -1/Command | Spotted M Guard 19408 | -1/Command | Met MAIN.C 19416 | -1/Command | Hacked MAIN.C using A7's code 19419 | -1/Command | 0b10 Conduit disabled 19427 | -1/Command | System corruption reached 10% 19461 | -1/Command | Lost 4 parts (4u) 19478 | -1/Command | Destroyed Combat Programmer 19489 | -1/Command | Disengaged cave seal 19489 | -1/Command | Derelicts emerged from the dark tunnel 19511 | -1/Command | Spotted B-99 Colossus 19539 | -1/Command | Spotted B-99 Colossus 19545 | -1/Command | Spotted B-99 Colossus 19545 | -1/Command | Discovered new exit (range 8) 19546 | *** | Escaped! Last Messages --------------- 19544_ Triggered Stasis Trap. 19544_ A bubble of rippling energy engulfs the area. 19544_ Field strength at 90. 19544_ Penetrated by Slug. 19544_ Critical hit (Destroy). 19544_ Adv. Remote Datajack destroyed. 19544_ Slug penetrates Wall. 19544_ Penetrated by Slug. 19544_ Field strength at 27. 19545_ Adv. Heat Sink destroyed. 19545_ Stasis field depleted. 19545_ The Access Shell folds into the floor. 19545_ EXIT=FOUND 19546_ Penetrated by Slug. 19546_ Slug penetrates Wall. 19546_ Penetrated by Slug. 19546_ Knocked back. 19546_ Slug penetrates Wall. 19546_ Penetrated by Slug. 19546_ Slug penetrates Wall. Map ----- +----------------------------------------------------+ | ????????????# """" """" ################### | | ????????????# """" """" #????# ! | | ????????????# """" """" #????# | | ????????????# """" """" #????# | | ????????????# #????# | | ????????????# #????# % | | ???????##################+#+####????# | | ???????# # # ##############/ ###+## | | ???????# # = # | | ???????# # + # | | ???????# / # # | | ???????# [ ?# # # | | ???????# ???# ! ###### # | | ????????? ?????######????# # | | ?????????##+################## # | | ?????????# # | | ?????????# ################################ # | | ?????????# #??????????????????????????????# # | | ?????????# #??????##############??????????# | | ?????????# ##?????# BB#??????????# | | ?????????# #?????# BB#########??# | | ?????????# ##?????# #E# #%# #### | | ?????????# #??????# KKE% 7 # | | ?????????# #??????# ^ *% ^+% | | ?????????# #??????# "" ^ ! ^+ | | ?????????# ######?# @% ^ + | | ?????????# # ### ^ + | | ?????????# # ## E E7 ^####### | | ?????????# # | ### ; # # # ###??????# | | ?????????# # #?# BB#########???????? | | ?????????# # #?# BB#???????????????? | | ?????????# + #?##############????????????????# | | ?????????# # #???????????????????????????????# | | ?????????# # = #???????????????????????????????# | | ?????????# # !%!#????????????##########?????????+ | | ?????????+ ###+##########????# #?????????# | | ???????? + # ![% #????# * #?????????# | | ??????? + # % #????# "" #?????????# | | ?????? # %# % % #????# """"#?????????# | | ????? ####=|# " %% #????# """"#?????????# | | ????? ???#*%# ###### "" #?????????# | | ???? ????# =/ + + #?????????# | | ???#?????# # ###### ########### | | ?????????# # #????# # | | ?????????# # #????######+### | | ?????????# # #????????# + "" | | ????????????# #????????# ### """" | | ????????????# #????????# #?# """" | | ????????????##############????????# #?# "" | | ?????????????????????????????????? #?# | +----------------------------------------------------+ Best States ------------- Heat Dissipation 71 Energy Generation 35 Energy Capacity 350 Matter Stores 300 Matter Capacity 300 Sight Range 16 Robot Scan Range 20 Terrain Scan Density 10 Jamming Range 16 Armor Coverage 450 Resistance: KI 30 Core Shielding 20 Propulsion Shielding 90 Utility Shielding 90 Evasion (%) 78 Recoil Reduction 4 Offensive Hacking 92 Defensive Hacking 26 Authchip Count 1 Item Schematics ----------------- Adv. System Shield | -7/Factory | Scanalyzed Imp. Hacking Suite | -7/Factory | Hacked Adv. Sensor Array | -7/Factory | Hacked Hvy. Riot Gun | -7/Zion | Free Bore Cannon | -7/Zion | Free Powered Armor | -6/Factory | Hacked Adv. Hacking Suite | -6/Factory | Hacked Exp. Utility Shielding | -6/Factory | Hacked Lrn. Sensor Array | -6/Factory | Hacked Mni. Smartbomb Launcher | -6/Factory | Hacked Mic. Nuclear Core | -6/Factory | Scanalyzed Hvy. Missile Launcher | -6/Factory | Scanalyzed Exp. Propulsion Shielding | -6/Extension | Hacked Imp. Linear Gravjet | -6/Hub_04(d) | Hacked Exp. Hacking Suite | -5/Factory | Hacked Exp. System Shield | -5/Factory | Hacked Exp. Signal Interpreter | -5/Factory | Hacked Adv. Reaction Control System | -5/Factory | Hacked Exp. Cesium-ion Thruster | -5/Factory | Hacked Assault Drone Bay | -5/Zhirov | Free Exp. Heat Sink | -5/Zhirov | Free Exp. Optical Array | -5/Zhirov | Free Imp. Arc Thrower | -5/Zhirov | Free Exp. Sensor Array | -4/Factory | Hacked Adv. Transmission Jammer | -4/Factory | Hacked Lgt. Antimatter Reactor | -4/Factory | Hacked Adv. Quantum Shading Machine | -4/Factory | Hacked Centrium Medium Armor Plating | -3/Research | Scanalyzed Nanosword | -3/Research | Hacked Exp. Core Analyzer | -2/Research | Hacked Exp. Armor Integrity Analyzer | -2/Research | Hacked Exp. Transmission Jammer | -2/Testing | Hacked Robot Schematics ------------------ Y-72 Warden | -2/Testing | Archive Fabricated ------------ Imp. Hacking Suite | x1 | -7/Factory Imp. Hacking Suite | x1 | -7/Factory Imp. Hacking Suite | x1 | -7/Factory Adv. Hacking Suite | x1 | -6/Factory | Authchip Exp. Utility Shielding | x1 | -6/Factory | Authchip Adv. Sensor Array | x1 | -6/Factory Adv. Hacking Suite | x1 | -6/Factory Lrn. Sensor Array | x1 | -6/Factory Mni. Smartbomb Launcher | x1 | -6/Factory Adv. Hacking Suite | x1 | -6/Factory Adv. Hacking Suite | x1 | -6/Factory Adv. Hacking Suite | x1 | -5/Factory Exp. Propulsion Shielding | x1 | -5/Factory | Authchip Exp. Hacking Suite | x1 | -5/Factory | Authchip Exp. Signal Interpreter | x1 | -5/Factory Exp. Cesium-ion Thruster | x1 | -5/Factory Exp. System Shield | x1 | -5/Factory Exp. Hacking Suite | x1 | -4/Factory | Authchip Exp. Sensor Array | x1 | -4/Factory Exp. Hacking Suite | x1 | -4/Factory | Authchip Exp. Hacking Suite | x1 | -4/Factory Assault Drone Bay | x1 | -3/Research Nanosword | x1 | -3/Armory Assault Drone Bay | x1 | -3/Armory Assault Drone Bay | x1 | -2/Research Exp. Utility Shielding | x1 | -2/Testing Assault Drone Bay | x1 | -1/Access Alien Tech Used ----------------- Integrated Reactor Core Expander Transdimensional Reconstructor Achievements -------------- Great Explorer Challenges ------------ None Game ------ Seed ChipActuatorKinecellerator Manual? 0 Play Time 03:29:33 Cumulative 793.3 hours Start 2023.02.23 @ 09:20:16 End 2023.02.23 @ 12:48:36 Sessions 1 Manual Loads 0 Difficulty Rogue Special Mode None Game No. 1213 Rogue 1213 Adventurer 0 Explorer 0 Win Type 0 Total 75 Types 45/1/12/12/4/0/0/1/0 Lore% 92 Gallery% 92 Achievement% 84 Wizard Run 0 Options --------- ASCII 1 Keyboard 0 Movement Numpad Keybinds 0 Fullscreen 0 Font 14/SmallcapsGlow Map View 76x50 Tactical HUD 1 Map Filters NONE Filters NONE Steam 1 RUN: 7a06d862-b8e4-498e-8ef2-347f3d720c72